Department Family,Entity,Date Paid,Expense Type,Expenses Area,Supplier Name,Transaction Reference,Total,VAT Registration Number,Vlookup
Department of Health,Imperial College Healthcare NHS Trust,03/01/2023,Agency Nursing: Qualified,Div Of Med & Integrated Care,Reed Specialist Recruitment Ltd,4756247,"106,488.67",Optional requirement only,0
Department of Health,Imperial College Healthcare NHS Trust,03/01/2023,Agency Nursing: Qualified,Div Of Med & Integrated Care,Reed Specialist Recruitment Ltd,4756356,"266,317.76",Optional requirement only,0
Department of Health,Imperial College Healthcare NHS Trust,03/01/2023,Agency Nursing: Qualified,"Div Of Surg, Cardiov & Cancer",Reed Specialist Recruitment Ltd,4756247,"207,397.89",Optional requirement only,0
Department of Health,Imperial College Healthcare NHS Trust,03/01/2023,Agency Nursing: Qualified,"Div Of Surg, Cardiov & Cancer",Reed Specialist Recruitment Ltd,4756356,"358,147.02",Optional requirement only,0
Department of Health,Imperial College Healthcare NHS Trust,03/01/2023,Agency Nursing: Qualified,West London Children'S Healthcare,Reed Specialist Recruitment Ltd,4756356,"38,479.08",Optional requirement only,0
Department of Health,Imperial College Healthcare NHS Trust,03/01/2023,Agency Senior Manager,Medical Director Summary,Reed Specialist Recruitment Ltd,4756247,"38,090.71",Optional requirement only,0
Department of Health,Imperial College Healthcare NHS Trust,03/01/2023,Agency Senior Manager,Medical Director Summary,Reed Specialist Recruitment Ltd,4756356,"72,349.53",Optional requirement only,0
Department of Health,Imperial College Healthcare NHS Trust,03/01/2023,Car Salary Sacrifice,Ichnt Balance Sheet,Tuskerdirect Ltd,4741034,"83,681.61",Optional requirement only,0
Department of Health,Imperial College Healthcare NHS Trust,03/01/2023,Clinical Managed Service Contr,"Div Of Surg, Cardiov & Cancer",Blatchford Limited,4735276,"49,430.51",Optional requirement only,0
Department of Health,Imperial College Healthcare NHS Trust,03/01/2023,Clinical Managed Service Contr,Div Of Women & Clin Support,Bham Womens & Childrens Nhs Ft,4728423,"28,195.50",Optional requirement only,0
Department of Health,Imperial College Healthcare NHS Trust,03/01/2023,Computer Software/License,Div Of Women & Clin Support,Philips Electronics Uk Ltd,4753007,"296,012.10",Optional requirement only,0
Department of Health,Imperial College Healthcare NHS Trust,03/01/2023,Computer Software/License,Information & Comms Technology,Cdw Ltd,4756542,"122,821.93",Optional requirement only,0
Department of Health,Imperial College Healthcare NHS Trust,03/01/2023,Contr Other External,Div Of Women & Clin Support,Alliance Medical Ltd,4750226,"74,400.00",Optional requirement only,0
Department of Health,Imperial College Healthcare NHS Trust,03/01/2023,Cy Auc -Addns-Bd Purchased,Capital Summary,M&J Group (Construction & Roofin) Ltd [Cs],4747562,"176,039.92",Optional requirement only,0
Department of Health,Imperial College Healthcare NHS Trust,03/01/2023,Cy Auc -Addns-Bd Purchased,Capital Summary,Vista Maintenance Services Limited,4741389,"91,431.76",Optional requirement only,0
Department of Health,Imperial College Healthcare NHS Trust,03/01/2023,Cy Auc -Addns-Bd Purchased,Capital Summary,Vista Maintenance Services Limited,4755502,"110,514.50",Optional requirement only,0
Department of Health,Imperial College Healthcare NHS Trust,03/01/2023,Cy Auc -Addns-Bd Purchased,Capital Summary,Vista Maintenance Services Limited,4755507,"119,814.84",Optional requirement only,0
Department of Health,Imperial College Healthcare NHS Trust,03/01/2023,Cy Auc -Addns-Bd Purchased,Capital Summary,Vista Maintenance Services Limited,4755517,"133,716.68",Optional requirement only,0
Department of Health,Imperial College Healthcare NHS Trust,03/01/2023,Cy Auc -Addns- It Eqpt-Addns,Capital Summary,Infratech Hardware Limited,4738859,"113,699.42",Optional requirement only,0
Department of Health,Imperial College Healthcare NHS Trust,03/01/2023,Cy Auc -Addns- P & M-Purchased,Capital Summary,Alcon Eye Care Uk Ltd,4753938,"41,356.22",Optional requirement only,0
Department of Health,Imperial College Healthcare NHS Trust,03/01/2023,Cy Auc -Addns- P & M-Purchased,Capital Summary,Becton Dickinson Uk Ltd,4749975,"70,800.00",Optional requirement only,0
Department of Health,Imperial College Healthcare NHS Trust,03/01/2023,Cy Auc -Addns- P & M-Purchased,Capital Summary,Siemens Healthcare Ltd,4748117,"60,662.40",Optional requirement only,0
Department of Health,Imperial College Healthcare NHS Trust,03/01/2023,Cy Auc -Addns- Prof Fee)-Purch,Capital Summary,Eta  Projects Ltd,4752868,"48,000.00",Optional requirement only,0
Department of Health,Imperial College Healthcare NHS Trust,03/01/2023,Dist Award - Local Cea,Div Of Women & Clin Support,Imperial College London,4756165,"25,873.64",Optional requirement only,0
Department of Health,Imperial College Healthcare NHS Trust,03/01/2023,Dist Award - Nat Cea,Div Of Med & Integrated Care,Imperial College London,4756165,"77,079.55",Optional requirement only,0
Department of Health,Imperial College Healthcare NHS Trust,03/01/2023,Dist Award - Nat Cea,"Div Of Surg, Cardiov & Cancer",Imperial College London,4756165,"47,790.36",Optional requirement only,0
Department of Health,Imperial College Healthcare NHS Trust,03/01/2023,Dist Award - Nat Cea,Div Of Women & Clin Support,Imperial College London,4756165,"36,517.63",Optional requirement only,0
Department of Health,Imperial College Healthcare NHS Trust,03/01/2023,Drugs Pbr Excluded,"Div Of Surg, Cardiov & Cancer",Healthcare At Home Ltd,4750194,"26,399.70",Optional requirement only,0
Department of Health,Imperial College Healthcare NHS Trust,03/01/2023,Ext Contr Logistics,Div Of Women & Clin Support,Eleanor Hospital Logistics Ltd,4751406,"62,273.88",Optional requirement only,0
Department of Health,Imperial College Healthcare NHS Trust,03/01/2023,Ic Pay Recharge In: Med,Div Of Med & Integrated Care,Imperial College London,4756165,"136,433.10",Optional requirement only,0
Department of Health,Imperial College Healthcare NHS Trust,03/01/2023,Ic Pay Recharge In: Med,"Div Of Surg, Cardiov & Cancer",Imperial College London,4756165,"193,065.52",Optional requirement only,0
Department of Health,Imperial College Healthcare NHS Trust,03/01/2023,Ic Pay Recharge In: Med,"Div Of Surg, Cardiov & Cancer",Imperial College London,4756166,"28,218.08",Optional requirement only,0
Department of Health,Imperial College Healthcare NHS Trust,03/01/2023,Ic Pay Recharge In: Med,Div Of Women & Clin Support,Imperial College London,4756165,"154,588.05",Optional requirement only,0
Department of Health,Imperial College Healthcare NHS Trust,03/01/2023,Ic Pay Recharge In: Med,Pathology,Imperial College London,4756168,"39,261.29",Optional requirement only,0
Department of Health,Imperial College Healthcare NHS Trust,03/01/2023,Ic Pay Recharge In: Med,Private Patients Directorate,Imperial College London,4684747,"33,444.45",Optional requirement only,0
Department of Health,Imperial College Healthcare NHS Trust,03/01/2023,Ic Pay Recharge In: Med,Private Patients Directorate,Imperial College London,4727767,"40,631.43",Optional requirement only,0
Department of Health,Imperial College Healthcare NHS Trust,03/01/2023,Items Pending Investigation,Ichnt Balance Sheet,Imperial College London,4727765,"35,915.90",Optional requirement only,0
Department of Health,Imperial College Healthcare NHS Trust,03/01/2023,Jac - Stock,Balance Sheet St Marys,Alliance Healthcare (Distribution) Ltd,4752814,"39,331.21",Optional requirement only,Stock
Department of Health,Imperial College Healthcare NHS Trust,03/01/2023,Jac - Stock,Balance Sheet St Marys,Alliance Healthcare (Distribution) Ltd,4753364,"44,723.52",Optional requirement only,Stock
Department of Health,Imperial College Healthcare NHS Trust,03/01/2023,Jac - Stock,Balance Sheet St Marys,Alliance Healthcare (Distribution) Ltd,4755093,"41,096.38",Optional requirement only,Stock
Department of Health,Imperial College Healthcare NHS Trust,03/01/2023,Jac - Stock,Balance Sheet St Marys,Alloga Uk Ltd,4753639,"97,632.00",Optional requirement only,Stock
Department of Health,Imperial College Healthcare NHS Trust,03/01/2023,Jac - Stock,Balance Sheet St Marys,Baxter Healthcare Ltd,4754288,"37,857.32",Optional requirement only,Stock
Department of Health,Imperial College Healthcare NHS Trust,03/01/2023,Jac - Stock,Balance Sheet St Marys,Csl Behring Uk Ltd,4750777,"31,344.50",Optional requirement only,Stock
Department of Health,Imperial College Healthcare NHS Trust,03/01/2023,Jac - Stock,Balance Sheet St Marys,Csl Behring Uk Ltd,4750778,"91,184.00",Optional requirement only,Stock
Department of Health,Imperial College Healthcare NHS Trust,03/01/2023,Jac - Stock,Balance Sheet St Marys,Csl Behring Uk Ltd,4750779,"59,839.50",Optional requirement only,Stock
Department of Health,Imperial College Healthcare NHS Trust,03/01/2023,Jac - Stock,Balance Sheet St Marys,Janssen-Cilag Ltd,4753636,"31,000.32",Optional requirement only,Stock
Department of Health,Imperial College Healthcare NHS Trust,03/01/2023,Med & Surg Equip Leases,"Div Of Surg, Cardiov & Cancer",Tp Leasing Ltd,4725296,"53,670.58",Optional requirement only,0
Department of Health,Imperial College Healthcare NHS Trust,03/01/2023,Med & Surg Equip Leases,Estates Directorate,Arjo Uk Ltd,4741108,"115,657.70",Optional requirement only,0
Department of Health,Imperial College Healthcare NHS Trust,03/01/2023,Med & Surg Maint Contract,Estates Directorate,Ge Medical Systems Limited,4748769,"751,836.00",Optional requirement only,0
Department of Health,Imperial College Healthcare NHS Trust,03/01/2023,Nhs Pay Recharge In: Clerical,"Div Of Surg, Cardiov & Cancer",Nhs Greater East Midlands Csu,4750211,"48,463.00",Optional requirement only,0
Department of Health,Imperial College Healthcare NHS Trust,03/01/2023,Other Research Exp - Non-Pay,Medical Director Summary,London North West Univ Healthcare Nhs Trust,4751802,"60,581.00",Optional requirement only,0
Department of Health,Imperial College Healthcare NHS Trust,03/01/2023,Other Research Exp - Non-Pay,Rd Medical Directorate,Imperial College London,4746424,"1,125,000.00",Optional requirement only,0
Department of Health,Imperial College Healthcare NHS Trust,03/01/2023,Other Transport Costs,Pathology,Dhl Supply Chain  (Former Excel),52360,"39,712.73",Optional requirement only,0
Department of Health,Imperial College Healthcare NHS Trust,03/01/2023,Patients Appl: Purchase,"Div Of Surg, Cardiov & Cancer",Blatchford Limited,4678209,"30,861.46",Optional requirement only,0
Department of Health,Imperial College Healthcare NHS Trust,03/01/2023,Patients Appl: Purchase,"Div Of Surg, Cardiov & Cancer",Blatchford Limited,4717515,"30,861.46",Optional requirement only,0
Department of Health,Imperial College Healthcare NHS Trust,03/01/2023,Prostheses,"Div Of Surg, Cardiov & Cancer",Blatchford Limited,4753633,"31,514.48",Optional requirement only,0
Department of Health,Imperial College Healthcare NHS Trust,03/01/2023,Purch Hcare Independent Sector,"Div Of Surg, Cardiov & Cancer",Homelink Healthcare Ltd,4748525,"66,326.25",Optional requirement only,0
Department of Health,Imperial College Healthcare NHS Trust,03/01/2023,Purch Hcare Independent Sector,Div Of Women & Clin Support,Hca International,4736346,"245,535.41",Optional requirement only,0
Department of Health,Imperial College Healthcare NHS Trust,03/01/2023,Purch Hcare Independent Sector,Div Of Women & Clin Support,Hca International,4736347,"278,814.84",Optional requirement only,0
Department of Health,Imperial College Healthcare NHS Trust,03/01/2023,Purch Hcare Independent Sector,Div Of Women & Clin Support,Hca International,4736349,"247,988.41",Optional requirement only,0
Department of Health,Imperial College Healthcare NHS Trust,03/01/2023,Purch Hcare Independent Sector,Div Of Women & Clin Support,Hca International,4736350,"338,798.93",Optional requirement only,0
Department of Health,Imperial College Healthcare NHS Trust,03/01/2023,Purch Hcare Independent Sector,Div Of Women & Clin Support,Hca International,4736351,"371,654.52",Optional requirement only,0
Department of Health,Imperial College Healthcare NHS Trust,03/01/2023,Purch Hcare Independent Sector,Div Of Women & Clin Support,Hca International,4736353,"416,132.66",Optional requirement only,0
Department of Health,Imperial College Healthcare NHS Trust,03/01/2023,Purch Hcare Independent Sector,Div Of Women & Clin Support,Hca International,4736354,"302,910.94",Optional requirement only,0
Department of Health,Imperial College Healthcare NHS Trust,03/01/2023,Purch Hcare Independent Sector,Div Of Women & Clin Support,Hca International,4736355,"30,515.08",Optional requirement only,0
Department of Health,Imperial College Healthcare NHS Trust,03/01/2023,Rent,Estates Directorate,Metropolitan Thames Valley,4754757,"51,587.29",Optional requirement only,0
Department of Health,Imperial College Healthcare NHS Trust,03/01/2023,Supplies Issues Recharges,Ichnt Balance Sheet,Supply Chain Coordination Ltd (Sccl) ( 101),4746361,"102,710.13",Optional requirement only,Stock
Department of Health,Imperial College Healthcare NHS Trust,03/01/2023,Supplies Issues Recharges,Ichnt Balance Sheet,Supply Chain Coordination Ltd (Sccl) ( 101),4746364,"109,218.13",Optional requirement only,Stock
Department of Health,Imperial College Healthcare NHS Trust,03/01/2023,Supplies Issues Recharges,Ichnt Balance Sheet,Supply Chain Coordination Ltd (Sccl) ( 101),4746366,"220,069.83",Optional requirement only,Stock
Department of Health,Imperial College Healthcare NHS Trust,03/01/2023,Supplies Issues Recharges,Ichnt Balance Sheet,Supply Chain Coordination Ltd (Sccl) ( 101),4746370,"98,549.07",Optional requirement only,Stock
Department of Health,Imperial College Healthcare NHS Trust,03/01/2023,Supplies Issues Recharges,Ichnt Balance Sheet,Supply Chain Coordination Ltd (Sccl) ( 101),4746372,"33,380.88",Optional requirement only,Stock
Department of Health,Imperial College Healthcare NHS Trust,03/01/2023,Supplies Issues Recharges,Ichnt Balance Sheet,Supply Chain Coordination Ltd (Sccl) ( 101),4746373,"92,624.18",Optional requirement only,Stock
Department of Health,Imperial College Healthcare NHS Trust,03/01/2023,Supplies Issues Recharges,Ichnt Balance Sheet,Supply Chain Coordination Ltd (Sccl) ( 101),4750882,"122,740.48",Optional requirement only,Stock
Department of Health,Imperial College Healthcare NHS Trust,03/01/2023,Supplies Issues Recharges,Ichnt Balance Sheet,Supply Chain Coordination Ltd (Sccl) ( 101),4750884,"93,598.68",Optional requirement only,Stock
Department of Health,Imperial College Healthcare NHS Trust,03/01/2023,Supplies Issues Recharges,Ichnt Balance Sheet,Supply Chain Coordination Ltd (Sccl) ( 101),4750885,"152,817.23",Optional requirement only,Stock
Department of Health,Imperial College Healthcare NHS Trust,03/01/2023,Supplies Issues Recharges,Ichnt Balance Sheet,Supply Chain Coordination Ltd (Sccl) ( 101),4750886,"84,340.01",Optional requirement only,Stock
Department of Health,Imperial College Healthcare NHS Trust,03/01/2023,Supplies Issues Recharges,Ichnt Balance Sheet,Supply Chain Coordination Ltd (Sccl) ( 101),4750887,"57,964.29",Optional requirement only,Stock
Department of Health,Imperial College Healthcare NHS Trust,03/01/2023,Supplies Issues Recharges,Ichnt Balance Sheet,Supply Chain Coordination Ltd (Sccl) ( 101),4750888,"162,898.41",Optional requirement only,Stock
Department of Health,Imperial College Healthcare NHS Trust,03/02/2023,Clinical Managed Service Contr,"Div Of Surg, Cardiov & Cancer",Blatchford Limited,4752838,"49,430.51",Optional requirement only,0
Department of Health,Imperial College Healthcare NHS Trust,03/02/2023,Computer Software/License,Information & Comms Technology,Ibm United Kingdom Ltd,4695819,"60,870.24",Optional requirement only,0
Department of Health,Imperial College Healthcare NHS Trust,03/02/2023,Course Fees,Human Resources,Imperial College London,4733106,"30,454.00",Optional requirement only,0
Department of Health,Imperial College Healthcare NHS Trust,03/02/2023,Cy Auc -Addns-Bd Purchased,Capital Summary,Breathe Energy Ltd,4724397,"255,210.64",Optional requirement only,0
Department of Health,Imperial College Healthcare NHS Trust,03/02/2023,Cy Auc -Addns-Bd Purchased,Capital Summary,Cuffe  Plc,4724540,"168,606.13",Optional requirement only,0
Department of Health,Imperial College Healthcare NHS Trust,03/02/2023,Cy Auc -Addns-Bd Purchased,Capital Summary,Cuffe  Plc,4739255,"210,905.45",Optional requirement only,0
Department of Health,Imperial College Healthcare NHS Trust,03/02/2023,Cy Auc -Addns-Bd Purchased,Capital Summary,Cuffe  Plc,4742328,"138,737.17",Optional requirement only,0
Department of Health,Imperial College Healthcare NHS Trust,03/02/2023,Cy Auc -Addns-Bd Purchased,Capital Summary,Cuffe  Plc,4752660,"30,124.62",Optional requirement only,0
Department of Health,Imperial College Healthcare NHS Trust,03/02/2023,Cy Auc -Addns- It Eqpt-Addns,Capital Summary,Cdw Ltd,4744190,"46,200.00",Optional requirement only,0
Department of Health,Imperial College Healthcare NHS Trust,03/02/2023,Cy Auc -Addns- P & M-Purchased,Capital Summary,Medtronic Ltd,4738713,"73,619.71",Optional requirement only,0
Department of Health,Imperial College Healthcare NHS Trust,03/02/2023,Items Pending Investigation,Ichnt Balance Sheet,Conduct Services Ltd,4561492,"32,334.00",Optional requirement only,0
Department of Health,Imperial College Healthcare NHS Trust,03/02/2023,Items Pending Investigation,Ichnt Balance Sheet,Royal Marsden Nhs Foundation Trust,4752060,"34,689.00",Optional requirement only,0
Department of Health,Imperial College Healthcare NHS Trust,03/02/2023,Med & Surg Equip General,Div Of Women & Clin Support,Lloyds Retail Chemists Ltd,4742247,"3,697,160.71",Optional requirement only,0
Department of Health,Imperial College Healthcare NHS Trust,03/02/2023,Other Research Exp - Non-Pay,Medical Director Summary,The Hepatitis C Trust,4750236,"80,000.00",Optional requirement only,0
Department of Health,Imperial College Healthcare NHS Trust,03/02/2023,Other Research Exp - Non-Pay,Medical Director Summary,The Hepatitis C Trust,4750237,"80,000.00",Optional requirement only,0
Department of Health,Imperial College Healthcare NHS Trust,03/02/2023,Other Research Exp - Pay,"Div Of Surg, Cardiov & Cancer",Imperial College London,4729785,"31,468.00",Optional requirement only,0
Department of Health,Imperial College Healthcare NHS Trust,03/02/2023,Patients Appl: Purchase,"Div Of Surg, Cardiov & Cancer",Blatchford Limited,4739851,"42,958.74",Optional requirement only,0
Department of Health,Imperial College Healthcare NHS Trust,03/02/2023,Patients Appl: Purchase,"Div Of Surg, Cardiov & Cancer",Blatchford Limited,4757336,"52,987.37",Optional requirement only,0
Department of Health,Imperial College Healthcare NHS Trust,03/02/2023,Services Received - Nhsts,Div Of Med & Integrated Care,London North West Univ Healthcare Nhs Trust,4744211,"78,448.51",Optional requirement only,0
Department of Health,Imperial College Healthcare NHS Trust,03/02/2023,Training Expenses,Medical Director Summary,Ic Consultants Ltd,4739202,"203,326.80",Optional requirement only,0
Department of Health,Imperial College Healthcare NHS Trust,03/07/2023,Computer Maintenance,Information & Comms Technology,Cerner Ltd,4741081,"42,803.98",Optional requirement only,0
Department of Health,Imperial College Healthcare NHS Trust,03/07/2023,Computer Maintenance,Information & Comms Technology,Cerner Ltd,4759459,"42,803.98",Optional requirement only,0
Department of Health,Imperial College Healthcare NHS Trust,03/07/2023,Computer Maintenance,Information & Comms Technology,Isosec Limited,4755193,"33,018.61",Optional requirement only,0
Department of Health,Imperial College Healthcare NHS Trust,03/07/2023,Cy Auc -Addns-Bd Purchased,Capital Summary,Cuffe  Plc,4757890,"1,430,962.20",Optional requirement only,0
Department of Health,Imperial College Healthcare NHS Trust,03/07/2023,Cy Auc -Addns- It Eqpt-Addns,Capital Summary,Cisco Systems Finance International,4760685,"286,381.46",Optional requirement only,0
Department of Health,Imperial College Healthcare NHS Trust,03/07/2023,Cy Auc -Addns- P & M-Purchased,Capital Summary,Olympus Keymed,4756509,"265,840.14",Optional requirement only,0
Department of Health,Imperial College Healthcare NHS Trust,03/07/2023,Cy Auc -Addns- P & M-Purchased,Capital Summary,Philips Electronics Uk Ltd,4756912,"181,890.01",Optional requirement only,0
Department of Health,Imperial College Healthcare NHS Trust,03/07/2023,Cy Auc -Addns- P & M-Purchased,Capital Summary,Philips Electronics Uk Ltd,4756916,"190,498.14",Optional requirement only,0
Department of Health,Imperial College Healthcare NHS Trust,03/07/2023,Cy Auc -Addns- P & M-Purchased,Capital Summary,Philips Electronics Uk Ltd,4756922,"2,189,993.02",Optional requirement only,0
Department of Health,Imperial College Healthcare NHS Trust,03/07/2023,Cy Auc -Addns- P & M-Purchased,Capital Summary,Supply Chain Coordination Ltd (Sccl) ( 905),4760848,"204,248.24",Optional requirement only,0
Department of Health,Imperial College Healthcare NHS Trust,03/07/2023,Cy Auc -Addns- P & M-Purchased,Capital Summary,Terumo Bct Europe N.V.,4752922,"95,972.42",Optional requirement only,0
Department of Health,Imperial College Healthcare NHS Trust,03/07/2023,Cy Auc -Addns- P & M-Purchased,Capital Summary,Terumo Bct Europe N.V.,4752923,"95,310.92",Optional requirement only,0
Department of Health,Imperial College Healthcare NHS Trust,03/07/2023,Drugs Nhs,Div Of Women & Clin Support,Nhs Business Services Authority,4755018,"34,757.01",Optional requirement only,0
Department of Health,Imperial College Healthcare NHS Trust,03/07/2023,Ic Pay Recharge In: Med,"Div Of Surg, Cardiov & Cancer",Imperial College London,4729817,"141,198.90",Optional requirement only,0
Department of Health,Imperial College Healthcare NHS Trust,03/07/2023,Isotopes,Div Of Women & Clin Support,Curium Pharma Uk Ltd,4757397,"69,414.00",Optional requirement only,0
Department of Health,Imperial College Healthcare NHS Trust,03/07/2023,Jac - Stock,Balance Sheet St Marys,Alliance Healthcare (Distribution) Ltd,4758671,"41,985.53",Optional requirement only,Stock
Department of Health,Imperial College Healthcare NHS Trust,03/07/2023,Jac - Stock,Balance Sheet St Marys,Baxter Healthcare Ltd,4758427,"30,973.84",Optional requirement only,Stock
Department of Health,Imperial College Healthcare NHS Trust,03/07/2023,Laboratory Equipment,Nwlp Capital Summary,Optech Microscope Services Limited,52334,"139,220.64",Optional requirement only,0
Department of Health,Imperial College Healthcare NHS Trust,03/07/2023,Med & Surg Equip General,Estates Directorate,Rfid Discovery Solutions Ltd,4702475,"43,200.00",Optional requirement only,0
Department of Health,Imperial College Healthcare NHS Trust,03/07/2023,Nhs Pay Recharge In: Med,"Div Of Surg, Cardiov & Cancer",London North West Univ Healthcare Nhs Trust,4521065,"28,233.00",Optional requirement only,0
Department of Health,Imperial College Healthcare NHS Trust,03/07/2023,Nhs Pay Recharge In: Med,"Div Of Surg, Cardiov & Cancer",London North West Univ Healthcare Nhs Trust,4552755,"43,260.00",Optional requirement only,0
Department of Health,Imperial College Healthcare NHS Trust,03/07/2023,Nhs Pay Recharge In: Med,"Div Of Surg, Cardiov & Cancer",London North West Univ Healthcare Nhs Trust,4638471,"34,452.00",Optional requirement only,0
Department of Health,Imperial College Healthcare NHS Trust,03/07/2023,Other Research Exp - Non-Pay,Rd Medical Directorate,Imperial College Healthcare Charity,4748528,"92,270.87",Optional requirement only,0
Department of Health,Imperial College Healthcare NHS Trust,03/07/2023,Other Research Exp - Pay,Rd Medicine Division,Imperial College London,4756108,"52,419.53",Optional requirement only,0
Department of Health,Imperial College Healthcare NHS Trust,03/07/2023,Other Transport Costs,Estates Directorate,Dhl Supply Chain  (Former Excel),4757348,"35,564.06",Optional requirement only,0
Department of Health,Imperial College Healthcare NHS Trust,03/07/2023,Patients Appl: Purchase,"Div Of Surg, Cardiov & Cancer",Blatchford Limited,4757827,"55,288.87",Optional requirement only,0
Department of Health,Imperial College Healthcare NHS Trust,03/07/2023,Purch Hcare Independent Sector,Div Of Med & Integrated Care,London Central & West Unscheduled Care Collab,4760693,"352,444.23",Optional requirement only,0
Department of Health,Imperial College Healthcare NHS Trust,03/07/2023,Services Received - Nhsts,Div Of Med & Integrated Care,London North West Univ Healthcare Nhs Trust,4750268,"38,621.52",Optional requirement only,0
Department of Health,Imperial College Healthcare NHS Trust,03/07/2023,Services Received - Nhsts,Div Of Med & Integrated Care,West Hertfordshire Hospitals Nhs Trust,4757287,"41,052.00",Optional requirement only,0
Department of Health,Imperial College Healthcare NHS Trust,03/07/2023,Srvcsrecd-Other Nhs,Rd Medicine Division,University College London,4744198,"38,500.00",Optional requirement only,0
Department of Health,Imperial College Healthcare NHS Trust,03/07/2023,Taxi & Other Vehicle Hire,Estates Directorate,Dhl Supply Chain  (Former Excel),4748532,"71,824.75",Optional requirement only,0
Department of Health,Imperial College Healthcare NHS Trust,03/07/2023,Taxi & Other Vehicle Hire,Estates Directorate,Dhl Supply Chain  (Former Excel),4748542,"43,796.70",Optional requirement only,0
Department of Health,Imperial College Healthcare NHS Trust,03/09/2023,Blood Products,Pathology,Nhs Blood And Transplant,4748547,"72,203.89",Optional requirement only,0
Department of Health,Imperial College Healthcare NHS Trust,03/09/2023,Blood Products,Pathology,Nhs Blood And Transplant,4748548,"166,973.52",Optional requirement only,0
Department of Health,Imperial College Healthcare NHS Trust,03/09/2023,Blood Products,Pathology,Nhs Blood And Transplant,4748550,"318,514.62",Optional requirement only,0
Department of Health,Imperial College Healthcare NHS Trust,03/09/2023,Car Salary Sacrifice,Ichnt Balance Sheet,Tuskerdirect Ltd,4757907,"87,030.19",Optional requirement only,0
Department of Health,Imperial College Healthcare NHS Trust,03/09/2023,Cleaning Materials,Estates Directorate,Synergy Health Managed Services Ltd,4763471,"59,767.36",Optional requirement only,0
Department of Health,Imperial College Healthcare NHS Trust,03/09/2023,Cy Auc -Addns-Bd Purchased,Capital Summary,Cuffe  Plc,4761113,"157,444.75",Optional requirement only,0
Department of Health,Imperial College Healthcare NHS Trust,03/09/2023,Cy Auc -Addns- It Eqpt-Addns,Capital Summary,Patients Know Best Limited,4756372,"1,168,800.00",Optional requirement only,0
Department of Health,Imperial College Healthcare NHS Trust,03/09/2023,Cy Auc -Addns- P & M-Purchased,Capital Summary,De Smit Medical Systems Ltd,4757247,"196,548.00",Optional requirement only,0
Department of Health,Imperial College Healthcare NHS Trust,03/09/2023,Cy Auc -Addns- P & M-Purchased,Capital Summary,Siemens Healthcare Ltd,4748120,"789,600.00",Optional requirement only,0
Department of Health,Imperial College Healthcare NHS Trust,03/09/2023,Cy Auc -Addns- P & M-Purchased,Capital Summary,Siemens Healthcare Ltd,4751405,"1,379,399.99",Optional requirement only,0
Department of Health,Imperial College Healthcare NHS Trust,03/09/2023,Cy Auc -Addns- P & M-Purchased,Capital Summary,Siemens Healthcare Ltd,4751407,"223,200.00",Optional requirement only,0
Department of Health,Imperial College Healthcare NHS Trust,03/09/2023,Equip Maint Contracts,Estates Directorate,Cbre Managed Services Ltd,4760556,"36,381.76",Optional requirement only,0
Department of Health,Imperial College Healthcare NHS Trust,03/09/2023,Ext Contr Laundry,Estates Directorate,Synergy Health Managed Services Ltd,4763472,"66,051.03",Optional requirement only,0
Department of Health,Imperial College Healthcare NHS Trust,03/09/2023,Ext Contr Laundry,Estates Directorate,Synergy Health Managed Services Ltd,4763473,"66,050.26",Optional requirement only,0
Department of Health,Imperial College Healthcare NHS Trust,03/09/2023,Ext Contr Laundry,Estates Directorate,Synergy Health Managed Services Ltd,4763474,"61,029.86",Optional requirement only,0
Department of Health,Imperial College Healthcare NHS Trust,03/09/2023,Hosting Service Expenses,Nhs Elect,The Staff College Leadership In Healthcare,4763608,"52,416.00",Optional requirement only,0
Department of Health,Imperial College Healthcare NHS Trust,03/09/2023,Items Pending Investigation,Ichnt Balance Sheet,Alliance Medical Ltd,4685083,"85,996.80",Optional requirement only,0
Department of Health,Imperial College Healthcare NHS Trust,03/09/2023,Jac - Stock,Balance Sheet St Marys,Aah Pharmaceuticals Limited,4762816,"31,168.80",Optional requirement only,Stock
Department of Health,Imperial College Healthcare NHS Trust,03/09/2023,Jac - Stock,Balance Sheet St Marys,Alloga Uk Ltd,4761494,"97,632.00",Optional requirement only,Stock
Department of Health,Imperial College Healthcare NHS Trust,03/09/2023,Jac - Stock,Balance Sheet St Marys,Bayer Plc,4762466,"77,558.76",Optional requirement only,Stock
Department of Health,Imperial College Healthcare NHS Trust,03/09/2023,Jac - Stock,Balance Sheet St Marys,Bayer Plc,4762467,"64,784.38",Optional requirement only,Stock
Department of Health,Imperial College Healthcare NHS Trust,03/09/2023,Jac - Stock,Balance Sheet St Marys,Bms Pharmaceuticals Ltd (0034),4762592,"40,079.28",Optional requirement only,Stock
Department of Health,Imperial College Healthcare NHS Trust,03/09/2023,Jac - Stock,Balance Sheet St Marys,Csl Behring Uk Ltd,4762020,"38,624.50",Optional requirement only,Stock
Department of Health,Imperial College Healthcare NHS Trust,03/09/2023,Jac - Stock,Balance Sheet St Marys,Csl Behring Uk Ltd,4762021,"74,087.00",Optional requirement only,Stock
Department of Health,Imperial College Healthcare NHS Trust,03/09/2023,Jac - Stock,Balance Sheet St Marys,Healthcare At Home Ltd,4758747,"37,299.00",Optional requirement only,Stock
Department of Health,Imperial College Healthcare NHS Trust,03/09/2023,Jac - Stock,Balance Sheet St Marys,Roche Products Ltd,4760215,"33,852.00",Optional requirement only,Stock
Department of Health,Imperial College Healthcare NHS Trust,03/09/2023,Jac - Stock,Balance Sheet St Marys,Roche Products Ltd,4760219,"219,960.00",Optional requirement only,Stock
Department of Health,Imperial College Healthcare NHS Trust,03/09/2023,Jac - Stock,Balance Sheet St Marys,Roche Products Ltd,4760220,"41,774.40",Optional requirement only,Stock
Department of Health,Imperial College Healthcare NHS Trust,03/09/2023,Jac - Stock,Balance Sheet St Marys,Roche Products Ltd,4760224,"271,284.00",Optional requirement only,Stock
Department of Health,Imperial College Healthcare NHS Trust,03/09/2023,Med & Surg Equip General,"Div Of Surg, Cardiov & Cancer",Healthshare Diagnostics Ltd,4756895,"165,146.70",Optional requirement only,0
Department of Health,Imperial College Healthcare NHS Trust,03/09/2023,Med & Surg Equip General,Div Of Women & Clin Support,Croyde Medical Limited,4755894,"110,664.00",Optional requirement only,0
Department of Health,Imperial College Healthcare NHS Trust,03/09/2023,Med & Surg Equip Leases,Div Of Med & Integrated Care,De Lage Landen Leasing Limited,4724694,"34,236.30",Optional requirement only,0
Department of Health,Imperial College Healthcare NHS Trust,03/09/2023,Med & Surg Equip Leases,"Div Of Surg, Cardiov & Cancer",Intuitive Surgical Ltd,4742142,"34,248.00",Optional requirement only,0
Department of Health,Imperial College Healthcare NHS Trust,03/09/2023,Med & Surg Equip Leases,"Div Of Surg, Cardiov & Cancer",Intuitive Surgical Ltd,4759581,"34,248.00",Optional requirement only,0
Department of Health,Imperial College Healthcare NHS Trust,03/09/2023,Postage & Carriage,Estates Directorate,Whistl Uk Limited,4763558,"34,017.91",Optional requirement only,0
Department of Health,Imperial College Healthcare NHS Trust,03/09/2023,Provisions,Estates Directorate,Brakes Bros Ltd,4763461,"221,370.86",Optional requirement only,0
Department of Health,Imperial College Healthcare NHS Trust,03/09/2023,Staff Recruitment Costs,Human Resources,King'S College Hospital Nhs Foundation Trust,4763489,"27,775.00",Optional requirement only,0
Department of Health,Imperial College Healthcare NHS Trust,03/09/2023,Transcription Services,Information & Comms Technology,Dictate It Ltd,4743633,"49,551.11",Optional requirement only,0
Department of Health,Imperial College Healthcare NHS Trust,03/09/2023,Transcription Services,Information & Comms Technology,Dictate It Ltd,4743634,"46,173.96",Optional requirement only,0
Department of Health,Imperial College Healthcare NHS Trust,3/14/2023,Acton Housing Association,Ichnt Balance Sheet,A2dominion Housing Group Ltd,4764684,"343,524.36",Optional requirement only,Housing Deductions
Department of Health,Imperial College Healthcare NHS Trust,3/14/2023,Computer Maintenance,Information & Comms Technology,Cerner Ltd,4723383,"57,071.96",Optional requirement only,0
Department of Health,Imperial College Healthcare NHS Trust,3/14/2023,Computer Maintenance,Information & Comms Technology,Cerner Ltd,4741092,"57,071.96",Optional requirement only,0
Department of Health,Imperial College Healthcare NHS Trust,3/14/2023,Computer Maintenance,Information & Comms Technology,Xerox (Uk) Ltd,4696360,"42,264.00",Optional requirement only,0
Department of Health,Imperial College Healthcare NHS Trust,3/14/2023,Computer Software/License,Information & Comms Technology,Oracle Corporation Uk Ltd,4763452,"89,402.44",Optional requirement only,0
Department of Health,Imperial College Healthcare NHS Trust,3/14/2023,Computer Software/License,Information & Comms Technology,Oracle Corporation Uk Ltd,4763457,"37,277.46",Optional requirement only,0
Department of Health,Imperial College Healthcare NHS Trust,3/14/2023,Contr Refuse & Clin Waste,Estates Directorate,Grundon Waste Management Ltd,4743509,"44,874.40",Optional requirement only,0
Department of Health,Imperial College Healthcare NHS Trust,3/14/2023,Contr Refuse & Clin Waste,Estates Directorate,Grundon Waste Management Ltd,4743511,"41,652.07",Optional requirement only,0
Department of Health,Imperial College Healthcare NHS Trust,3/14/2023,Contr Refuse & Clin Waste,Estates Directorate,Grundon Waste Management Ltd,4743512,"40,089.25",Optional requirement only,0
Department of Health,Imperial College Healthcare NHS Trust,3/14/2023,Course Fees,Nursing Directorate,King'S College London,4766236,"49,500.00",Optional requirement only,0
Department of Health,Imperial College Healthcare NHS Trust,3/14/2023,Cy Auc -Addns-Bd Purchased,Capital Summary,M&J Group (Construction & Roofin) Ltd [Cs],4734076,"31,678.40",Optional requirement only,0
Department of Health,Imperial College Healthcare NHS Trust,3/14/2023,Cy Auc -Addns-Bd Purchased,Capital Summary,M&J Group (Construction & Roofin) Ltd [Cs],4754681,"39,170.81",Optional requirement only,0
Department of Health,Imperial College Healthcare NHS Trust,3/14/2023,Cy Auc -Addns-Bd Purchased,Capital Summary,M&J Group (Construction & Roofin) Ltd [Cs],4765878,"357,761.99",Optional requirement only,0
Department of Health,Imperial College Healthcare NHS Trust,3/14/2023,Cy Auc -Addns- It Eqpt-Addns,Capital Summary,Bytes Software Services Limited,4764686,"58,703.04",Optional requirement only,0
Department of Health,Imperial College Healthcare NHS Trust,3/14/2023,Cy Auc -Addns- It Eqpt-Addns,Capital Summary,Infratech Hardware Limited,4764853,"32,400.00",Optional requirement only,0
Department of Health,Imperial College Healthcare NHS Trust,3/14/2023,Cy Auc -Addns- P & M-Purchased,Capital Summary,Leica Microsystems (Uk) Ltd,4760873,"238,789.13",Optional requirement only,0
Department of Health,Imperial College Healthcare NHS Trust,3/14/2023,Cy Auc -Addns- P & M-Purchased,Capital Summary,Philips Electronics Uk Ltd,4757262,"230,976.77",Optional requirement only,0
Department of Health,Imperial College Healthcare NHS Trust,3/14/2023,Cy Auc -Addns- P & M-Purchased,Capital Summary,Supply Chain Coordination Ltd (Sccl) ( 905),4764421,"61,816.68",Optional requirement only,0
Department of Health,Imperial College Healthcare NHS Trust,3/14/2023,Cy Auc -Addns- P & M-Purchased,Capital Summary,Supply Chain Coordination Ltd (Sccl) ( 905),4765749,"120,336.00",Optional requirement only,0
Department of Health,Imperial College Healthcare NHS Trust,3/14/2023,Items Pending Investigation,Ichnt Balance Sheet,Baxter Healthcare Ltd,4744230,"47,025.00",Optional requirement only,0
Department of Health,Imperial College Healthcare NHS Trust,3/14/2023,Laboratory Equipment,Pathology,Ibg Immucor Limited,53022,"33,397.82",Optional requirement only,0
Department of Health,Imperial College Healthcare NHS Trust,3/14/2023,Med & Prof Fees (Imaging Cons),Ichnt Balance Sheet,Lindo Wing Radiology Llp,4764574,"146,358.43",Optional requirement only,0
Department of Health,Imperial College Healthcare NHS Trust,3/14/2023,Med & Surg Equip General,Nwlp Capital Summary,Rps Service Ltd,53096,"82,800.00",Optional requirement only,0
Department of Health,Imperial College Healthcare NHS Trust,3/14/2023,Med & Surg Equip General,Pathology,Vh Bio Ltd,53035,"144,000.00",Optional requirement only,0
Department of Health,Imperial College Healthcare NHS Trust,3/14/2023,Nhs Pay Recharge In: Med,Central Costs,Royal Free London Nhs Foundation Trust,4720612,"131,234.35",Optional requirement only,0
Department of Health,Imperial College Healthcare NHS Trust,3/14/2023,Nhs Pay Recharge In: Med,Central Costs,Royal Free London Nhs Foundation Trust,4739451,"121,993.33",Optional requirement only,0
Department of Health,Imperial College Healthcare NHS Trust,3/14/2023,Nhs Pay Recharge In: Med,Div Of Women & Clin Support,London North West Univ Healthcare Nhs Trust,4508285,"46,795.00",Optional requirement only,0
Department of Health,Imperial College Healthcare NHS Trust,3/14/2023,Nhs Pay Recharge In: Med,Div Of Women & Clin Support,London North West Univ Healthcare Nhs Trust,4552769,"44,645.00",Optional requirement only,0
Department of Health,Imperial College Healthcare NHS Trust,3/14/2023,Nhs Pay Recharge In: Med,Div Of Women & Clin Support,London North West Univ Healthcare Nhs Trust,4638475,"44,785.00",Optional requirement only,0
Department of Health,Imperial College Healthcare NHS Trust,3/14/2023,Nhs Pay Recharge In: Med,Div Of Women & Clin Support,London North West Univ Healthcare Nhs Trust,4716752,"28,914.05",Optional requirement only,0
Department of Health,Imperial College Healthcare NHS Trust,3/14/2023,Nhs Pay Recharge In: Med,Div Of Women & Clin Support,London North West Univ Healthcare Nhs Trust,4716753,"61,559.32",Optional requirement only,0
Department of Health,Imperial College Healthcare NHS Trust,3/14/2023,Nhs Pay Recharge In: Med,Finance Directorate,London North West Univ Healthcare Nhs Trust,4760609,"27,798.75",Optional requirement only,0
Department of Health,Imperial College Healthcare NHS Trust,3/14/2023,Other Gen Supplies & Srv,"Div Of Surg, Cardiov & Cancer",Acumentice Limited,4759503,"154,042.92",Optional requirement only,0
Department of Health,Imperial College Healthcare NHS Trust,3/14/2023,Other Research Exp - Pay,Div Of Women & Clin Support,Imperial College London,4738054,"28,183.02",Optional requirement only,0
Department of Health,Imperial College Healthcare NHS Trust,3/14/2023,Other Research Exp - Pay,Rd Medicine Division,University Of Oxford,4702175,"51,476.49",Optional requirement only,0
Department of Health,Imperial College Healthcare NHS Trust,3/14/2023,Other Research Exp - Pay,Rdwomen And Children Division,Imperial College London,4760708,"76,170.91",Optional requirement only,0
Department of Health,Imperial College Healthcare NHS Trust,3/14/2023,Other Transport Costs,Pathology,Dhl Supply Chain  (Former Excel),52809,"76,719.26",Optional requirement only,0
Department of Health,Imperial College Healthcare NHS Trust,3/14/2023,Other Transport Costs,Pathology,Dhl Supply Chain  (Former Excel),52811,"144,110.84",Optional requirement only,0
Department of Health,Imperial College Healthcare NHS Trust,3/14/2023,Other Transport Costs,Pathology,Dhl Supply Chain  (Former Excel),52812,"36,246.94",Optional requirement only,0
Department of Health,Imperial College Healthcare NHS Trust,3/14/2023,Supplies Issues Recharges,Ichnt Balance Sheet,Supply Chain Coordination Ltd (Sccl) ( 101),4756022,"132,879.25",Optional requirement only,Stock
Department of Health,Imperial College Healthcare NHS Trust,3/14/2023,Supplies Issues Recharges,Ichnt Balance Sheet,Supply Chain Coordination Ltd (Sccl) ( 101),4756023,"81,023.27",Optional requirement only,Stock
Department of Health,Imperial College Healthcare NHS Trust,3/14/2023,Supplies Issues Recharges,Ichnt Balance Sheet,Supply Chain Coordination Ltd (Sccl) ( 101),4756024,"122,209.83",Optional requirement only,Stock
Department of Health,Imperial College Healthcare NHS Trust,3/14/2023,Supplies Issues Recharges,Ichnt Balance Sheet,Supply Chain Coordination Ltd (Sccl) ( 101),4756544,"59,742.84",Optional requirement only,Stock
Department of Health,Imperial College Healthcare NHS Trust,3/14/2023,Supplies Issues Recharges,Ichnt Balance Sheet,Supply Chain Coordination Ltd (Sccl) ( 101),4756545,"151,504.16",Optional requirement only,Stock
Department of Health,Imperial College Healthcare NHS Trust,3/14/2023,Supplies Issues Recharges,Ichnt Balance Sheet,Supply Chain Coordination Ltd (Sccl) ( 101),4756546,"88,855.15",Optional requirement only,Stock
Department of Health,Imperial College Healthcare NHS Trust,3/14/2023,Supplies Issues Recharges,Ichnt Balance Sheet,Supply Chain Coordination Ltd (Sccl) ( 101),4760413,"91,560.87",Optional requirement only,Stock
Department of Health,Imperial College Healthcare NHS Trust,3/14/2023,Supplies Issues Recharges,Ichnt Balance Sheet,Supply Chain Coordination Ltd (Sccl) ( 101),4760414,"120,478.22",Optional requirement only,Stock
Department of Health,Imperial College Healthcare NHS Trust,3/14/2023,Supplies Issues Recharges,Ichnt Balance Sheet,Supply Chain Coordination Ltd (Sccl) ( 101),4760415,"133,242.06",Optional requirement only,Stock
Department of Health,Imperial College Healthcare NHS Trust,3/14/2023,Supplies Issues Recharges,Ichnt Balance Sheet,Supply Chain Coordination Ltd (Sccl) ( 101),4760416,"161,641.54",Optional requirement only,Stock
Department of Health,Imperial College Healthcare NHS Trust,3/14/2023,Supplies Issues Recharges,Ichnt Balance Sheet,Supply Chain Coordination Ltd (Sccl) ( 101),4760417,"108,947.53",Optional requirement only,Stock
Department of Health,Imperial College Healthcare NHS Trust,3/14/2023,Supplies Issues Recharges,Ichnt Balance Sheet,Supply Chain Coordination Ltd (Sccl) ( 101),4760418,"121,135.55",Optional requirement only,Stock
Department of Health,Imperial College Healthcare NHS Trust,3/14/2023,Thames Valley Housing Assoc,Ichnt Balance Sheet,Metropolitan Thames Valley,4764685,"108,838.96",Optional requirement only,Housing Deductions
Department of Health,Imperial College Healthcare NHS Trust,3/16/2023,Agency Nursing: Qualified,Div Of Med & Integrated Care,Reed Specialist Recruitment Ltd,4767769,"239,376.26",Optional requirement only,0
Department of Health,Imperial College Healthcare NHS Trust,3/16/2023,Agency Nursing: Qualified,"Div Of Surg, Cardiov & Cancer",Reed Specialist Recruitment Ltd,4767769,"380,561.09",Optional requirement only,0
Department of Health,Imperial College Healthcare NHS Trust,3/16/2023,Agency Nursing: Qualified,Div Of Women & Clin Support,Reed Specialist Recruitment Ltd,4767769,"31,528.59",Optional requirement only,0
Department of Health,Imperial College Healthcare NHS Trust,3/16/2023,Bldg/Eng Equip Maint/Rep,Estates Directorate,Cbre Managed Services Ltd,4767670,"264,582.66",Optional requirement only,0
Department of Health,Imperial College Healthcare NHS Trust,3/16/2023,Clinical Managed Service Contr,Pathology,Abbott Laboratories Ltd,49396,"346,334.03",Optional requirement only,0
Department of Health,Imperial College Healthcare NHS Trust,3/16/2023,Clinical Managed Service Contr,Pathology,Abbott Laboratories Ltd,49397,"479,267.86",Optional requirement only,0
Department of Health,Imperial College Healthcare NHS Trust,3/16/2023,Clinical Managed Service Contr,Pathology,Abbott Laboratories Ltd,49399,"622,879.66",Optional requirement only,0
Department of Health,Imperial College Healthcare NHS Trust,3/16/2023,Clinical Managed Service Contr,Pathology,Abbott Laboratories Ltd,49400,"105,375.44",Optional requirement only,0
Department of Health,Imperial College Healthcare NHS Trust,3/16/2023,Clinical Managed Service Contr,Pathology,Abbott Laboratories Ltd,49474,"333,087.75",Optional requirement only,0
Department of Health,Imperial College Healthcare NHS Trust,3/16/2023,Clinical Managed Service Contr,Pathology,Abbott Laboratories Ltd,50286,"375,150.74",Optional requirement only,0
Department of Health,Imperial College Healthcare NHS Trust,3/16/2023,Clinical Managed Service Contr,Pathology,Abbott Laboratories Ltd,50287,"510,608.80",Optional requirement only,0
Department of Health,Imperial College Healthcare NHS Trust,3/16/2023,Clinical Managed Service Contr,Pathology,Abbott Laboratories Ltd,50288,"68,411.87",Optional requirement only,0
Department of Health,Imperial College Healthcare NHS Trust,3/16/2023,Clinical Managed Service Contr,Pathology,Abbott Laboratories Ltd,50289,"1,016,508.28",Optional requirement only,0
Department of Health,Imperial College Healthcare NHS Trust,3/16/2023,Clinical Managed Service Contr,Pathology,Abbott Laboratories Ltd,50290,"98,759.20",Optional requirement only,0
Department of Health,Imperial College Healthcare NHS Trust,3/16/2023,Clinical Managed Service Contr,Pathology,Abbott Laboratories Ltd,50795,"319,352.36",Optional requirement only,0
Department of Health,Imperial College Healthcare NHS Trust,3/16/2023,Clinical Managed Service Contr,Pathology,Abbott Laboratories Ltd,51085,"371,083.86",Optional requirement only,0
Department of Health,Imperial College Healthcare NHS Trust,3/16/2023,Clinical Managed Service Contr,Pathology,Abbott Laboratories Ltd,51086,"452,133.01",Optional requirement only,0
Department of Health,Imperial College Healthcare NHS Trust,3/16/2023,Clinical Managed Service Contr,Pathology,Abbott Laboratories Ltd,51088,"892,521.25",Optional requirement only,0
Department of Health,Imperial College Healthcare NHS Trust,3/16/2023,Clinical Managed Service Contr,Pathology,Abbott Laboratories Ltd,51089,"144,997.78",Optional requirement only,0
Department of Health,Imperial College Healthcare NHS Trust,3/16/2023,Clinical Managed Service Contr,Pathology,Abbott Laboratories Ltd,51129,"380,566.87",Optional requirement only,0
Department of Health,Imperial College Healthcare NHS Trust,3/16/2023,Clinical Managed Service Contr,Pathology,Abbott Laboratories Ltd,51992,"354,533.28",Optional requirement only,0
Department of Health,Imperial College Healthcare NHS Trust,3/16/2023,Clinical Managed Service Contr,Pathology,Abbott Laboratories Ltd,51993,"37,321.84",Optional requirement only,0
Department of Health,Imperial College Healthcare NHS Trust,3/16/2023,Clinical Managed Service Contr,Pathology,Abbott Laboratories Ltd,51994,"415,325.76",Optional requirement only,0
Department of Health,Imperial College Healthcare NHS Trust,3/16/2023,Clinical Managed Service Contr,Pathology,Abbott Laboratories Ltd,51995,"84,204.11",Optional requirement only,0
Department of Health,Imperial College Healthcare NHS Trust,3/16/2023,Clinical Managed Service Contr,Pathology,Abbott Laboratories Ltd,51997,"976,750.36",Optional requirement only,0
Department of Health,Imperial College Healthcare NHS Trust,3/16/2023,Clinical Managed Service Contr,Pathology,Abbott Laboratories Ltd,51998,"266,276.72",Optional requirement only,0
Department of Health,Imperial College Healthcare NHS Trust,3/16/2023,Clinical Managed Service Contr,Pathology,Chelsea And  Westminster Hospital Nhs Ft,43797,"214,388.72",Optional requirement only,0
Department of Health,Imperial College Healthcare NHS Trust,3/16/2023,Clinical Managed Service Contr,Pathology,Chelsea And  Westminster Hospital Nhs Ft,44214,"104,316.30",Optional requirement only,0
Department of Health,Imperial College Healthcare NHS Trust,3/16/2023,Clinical Managed Service Contr,Pathology,Chelsea And  Westminster Hospital Nhs Ft,48205,"50,025.72",Optional requirement only,0
Department of Health,Imperial College Healthcare NHS Trust,3/16/2023,Clinical Managed Service Contr,Pathology,Chelsea And  Westminster Hospital Nhs Ft,48555,"41,518.88",Optional requirement only,0
Department of Health,Imperial College Healthcare NHS Trust,3/16/2023,Computer Hardware Purch,Information & Comms Technology,Nuance Communications International Bvba,4760393,"43,500.00",Optional requirement only,0
Department of Health,Imperial College Healthcare NHS Trust,3/16/2023,Computer Maintenance,Information & Comms Technology,Canon (Uk) Ltd,4692132,"51,107.45",Optional requirement only,0
Department of Health,Imperial College Healthcare NHS Trust,3/16/2023,Computer Maintenance,Information & Comms Technology,Cerner Ltd,4759455,"57,071.96",Optional requirement only,0
Department of Health,Imperial College Healthcare NHS Trust,3/16/2023,Computer Software/License,Information & Comms Technology,Ibm United Kingdom Ltd,4751602,"60,870.24",Optional requirement only,0
Department of Health,Imperial College Healthcare NHS Trust,3/16/2023,Computer Software/License,Office Of Chief Executive,Diligent Boardbooks Ltd,4625689,"32,436.00",Optional requirement only,0
Department of Health,Imperial College Healthcare NHS Trust,3/16/2023,Contr Other External,Estates Directorate,Cbre Managed Services Ltd,4760560,"772,866.90",Optional requirement only,0
Department of Health,Imperial College Healthcare NHS Trust,3/16/2023,Contr Refuse & Clin Waste,Estates Directorate,Grundon Waste Management Ltd,4760856,"38,069.27",Optional requirement only,0
Department of Health,Imperial College Healthcare NHS Trust,3/16/2023,Contr Refuse & Clin Waste,Estates Directorate,Grundon Waste Management Ltd,4760857,"37,003.97",Optional requirement only,0
Department of Health,Imperial College Healthcare NHS Trust,3/16/2023,Contr Refuse & Clin Waste,Estates Directorate,Grundon Waste Management Ltd,4760860,"40,697.45",Optional requirement only,0
Department of Health,Imperial College Healthcare NHS Trust,3/16/2023,Course Fees,Nursing Directorate,City University,4767222,"30,000.00",Optional requirement only,0
Department of Health,Imperial College Healthcare NHS Trust,3/16/2023,Cy Auc -Addns-Bd Purchased,Capital Summary,Alarm Communication Limited,4757910,"36,000.00",Optional requirement only,0
Department of Health,Imperial College Healthcare NHS Trust,3/16/2023,Cy Auc -Addns-Bd Purchased,Capital Summary,Breathe Energy Ltd,4731363,"894,582.00",Optional requirement only,0
Department of Health,Imperial College Healthcare NHS Trust,3/16/2023,Cy Auc -Addns-Bd Purchased,Capital Summary,Breathe Energy Ltd,4764790,"1,604,478.00",Optional requirement only,0
Department of Health,Imperial College Healthcare NHS Trust,3/16/2023,Cy Auc -Addns-Bd Purchased,Capital Summary,Cbre Managed Services Ltd,4767670,"556,925.18",Optional requirement only,0
Department of Health,Imperial College Healthcare NHS Trust,3/16/2023,Cy Auc -Addns-Bd Purchased,Capital Summary,Cbre Managed Services Ltd,4767793,"1,108,780.42",Optional requirement only,0
Department of Health,Imperial College Healthcare NHS Trust,3/16/2023,Cy Auc -Addns- It Eqpt-Addns,Capital Summary,Optimus It Infra Ltd,4767765,"793,082.34",Optional requirement only,0
Department of Health,Imperial College Healthcare NHS Trust,3/16/2023,Cy Auc -Addns- P & M-Purchased,Capital Summary,Bayer Plc,4765869,"38,988.02",Optional requirement only,0
Department of Health,Imperial College Healthcare NHS Trust,3/16/2023,Cy Auc -Addns- P & M-Purchased,Capital Summary,Bayer Plc,4765871,"38,988.02",Optional requirement only,0
Department of Health,Imperial College Healthcare NHS Trust,3/16/2023,Cy Auc -Addns- P & M-Purchased,Capital Summary,Haemonetics Limited,4750498,"33,600.00",Optional requirement only,0
Department of Health,Imperial College Healthcare NHS Trust,3/16/2023,Cy Auc -Addns- P & M-Purchased,Capital Summary,Haemonetics Limited,4753106,"33,600.00",Optional requirement only,0
Department of Health,Imperial College Healthcare NHS Trust,3/16/2023,Cy Auc -Addns- P & M-Purchased,Capital Summary,Supply Chain Coordination Ltd (Sccl) ( 905),4767513,"108,113.76",Optional requirement only,0
Department of Health,Imperial College Healthcare NHS Trust,3/16/2023,Cy Auc -Addns- P & M-Purchased,Capital Summary,Supply Chain Coordination Ltd (Sccl) ( 905),4767514,"103,896.00",Optional requirement only,0
Department of Health,Imperial College Healthcare NHS Trust,3/16/2023,Cy Auc -Addns- Prof Fee)-Purch,Capital Summary,Eta  Projects Ltd,4767581,"36,000.00",Optional requirement only,0
Department of Health,Imperial College Healthcare NHS Trust,3/16/2023,Cy Auc -Addns- Prof Fee)-Purch,Capital Summary,Jrm Consultants Limited,4764762,"36,624.00",Optional requirement only,0
Department of Health,Imperial College Healthcare NHS Trust,3/16/2023,Electricity,Estates Directorate,Edf Energy Customer Plc,4767691,"783,268.88",Optional requirement only,0
Department of Health,Imperial College Healthcare NHS Trust,3/16/2023,Electricity,Estates Directorate,Edf Energy Customer Plc,4767697,"141,494.36",Optional requirement only,0
Department of Health,Imperial College Healthcare NHS Trust,3/16/2023,Electricity,Estates Directorate,Edf Energy Customer Plc,4767705,"46,857.48",Optional requirement only,0
Department of Health,Imperial College Healthcare NHS Trust,3/16/2023,Interpreting Services,Div Of Women & Clin Support,Oncall Interpreters Ltd [Cw],4686235,"60,550.44",Optional requirement only,0
Department of Health,Imperial College Healthcare NHS Trust,3/16/2023,Laboratory Test Kits,Pathology,Becton Dickinson Uk Ltd,53231,"34,138.01",Optional requirement only,0
Department of Health,Imperial College Healthcare NHS Trust,3/16/2023,Med & Surg Maint Contract,Div Of Med & Integrated Care,Supply Chain Coordination Ltd (Sccl) ( 201),4758924,"82,435.04",Optional requirement only,0
Department of Health,Imperial College Healthcare NHS Trust,3/16/2023,Med & Surg Maint Contract,Div Of Med & Integrated Care,Supply Chain Coordination Ltd (Sccl) ( 201),4758925,"65,046.14",Optional requirement only,0
Department of Health,Imperial College Healthcare NHS Trust,3/16/2023,Med & Surg Maint Contract,Div Of Med & Integrated Care,Supply Chain Coordination Ltd (Sccl) ( 201),4758926,"75,689.99",Optional requirement only,0
Department of Health,Imperial College Healthcare NHS Trust,3/16/2023,Med & Surg Maint Contract,Div Of Med & Integrated Care,Supply Chain Coordination Ltd (Sccl) ( 201),4758927,"42,626.56",Optional requirement only,0
Department of Health,Imperial College Healthcare NHS Trust,3/16/2023,Med & Surg Maint Contract,Div Of Med & Integrated Care,Supply Chain Coordination Ltd (Sccl) ( 201),4758928,"73,950.31",Optional requirement only,0
Department of Health,Imperial College Healthcare NHS Trust,3/16/2023,Med & Surg Maint Contract,Div Of Med & Integrated Care,Supply Chain Coordination Ltd (Sccl) ( 201),4758929,"40,840.41",Optional requirement only,0
Department of Health,Imperial College Healthcare NHS Trust,3/16/2023,Med & Surg Maint Contract,Div Of Med & Integrated Care,Supply Chain Coordination Ltd (Sccl) ( 201),4758931,"65,123.09",Optional requirement only,0
Department of Health,Imperial College Healthcare NHS Trust,3/16/2023,Med & Surg Maint Contract,Div Of Med & Integrated Care,Supply Chain Coordination Ltd (Sccl) ( 201),4758933,"65,449.83",Optional requirement only,0
Department of Health,Imperial College Healthcare NHS Trust,3/16/2023,Med & Surg Maint Contract,Div Of Med & Integrated Care,Supply Chain Coordination Ltd (Sccl) ( 201),4758934,"71,651.12",Optional requirement only,0
Department of Health,Imperial College Healthcare NHS Trust,3/16/2023,Med & Surg Maint Contract,"Div Of Surg, Cardiov & Cancer",Supply Chain Coordination Ltd (Sccl) ( 201),4758922,"45,497.46",Optional requirement only,0
Department of Health,Imperial College Healthcare NHS Trust,3/16/2023,Med & Surg Maint Contract,Estates Directorate,Ge Medical Systems Limited,4761058,"841,174.80",Optional requirement only,0
Department of Health,Imperial College Healthcare NHS Trust,3/16/2023,Minor Works,Div Of Women & Clin Support,Cbre Managed Services Ltd,4767793,"141,754.68",Optional requirement only,0
Department of Health,Imperial College Healthcare NHS Trust,3/16/2023,Nhs Pay Recharge In: Med,Div Of Women & Clin Support,London North West Univ Healthcare Nhs Trust,4460116,"126,146.00",Optional requirement only,0
Department of Health,Imperial College Healthcare NHS Trust,3/16/2023,Office Equipment,Div Of Women & Clin Support,Oncall Interpreters Ltd [Cw],4742609,"63,372.78",Optional requirement only,0
Department of Health,Imperial College Healthcare NHS Trust,3/16/2023,Office Equipment,Div Of Women & Clin Support,Oncall Interpreters Ltd [Cw],4760407,"59,724.35",Optional requirement only,0
Department of Health,Imperial College Healthcare NHS Trust,3/16/2023,Other Research Exp - Non-Pay,Rd Medical Directorate,London Ambulance Service Nhs Trust,4760764,"41,551.00",Optional requirement only,0
Department of Health,Imperial College Healthcare NHS Trust,3/16/2023,Other Research Exp - Pay,Rd Surgery & Cancer Division,Imperial College London,4731419,"165,057.21",Optional requirement only,0
Department of Health,Imperial College Healthcare NHS Trust,3/16/2023,Other Research Exp - Pay,Rd Surgery & Cancer Division,Imperial College London,4757255,"237,000.00",Optional requirement only,0
Department of Health,Imperial College Healthcare NHS Trust,3/16/2023,Services Received - Nhsts,Pathology,Royal Marsden Nhs Foundation Trust,4755774,"25,403.98",Optional requirement only,0
Department of Health,Imperial College Healthcare NHS Trust,3/16/2023,Services Received - Nhsts,Pathology,Royal National Orthopaedic Hosp,52517,"54,530.00",Optional requirement only,0
Department of Health,Imperial College Healthcare NHS Trust,3/16/2023,Srvcsrecd-Other Nhs,Pathology,Micropathology Ltd,52891,"28,758.00",Optional requirement only,0
Department of Health,Imperial College Healthcare NHS Trust,3/20/2023,Income Tax Paye,Ichnt Balance Sheet,Hmrc Government Employers Account,4761103,"10,820,958.33",Optional requirement only,0
Department of Health,Imperial College Healthcare NHS Trust,3/20/2023,Income Tax Paye,Ichnt Balance Sheet,Hmrc Government Employers Account,4761108,"10,526,054.84",Optional requirement only,0
Department of Health,Imperial College Healthcare NHS Trust,3/20/2023,Other Gen Supplies & Srv,Nursing Directorate,Mentimeter Ab,4760658,"30,576.00",Optional requirement only,0
Department of Health,Imperial College Healthcare NHS Trust,3/21/2023,Clinical Managed Service Contr,Pathology,Abbott Laboratories Ltd,52817,"195,727.03",Optional requirement only,0
Department of Health,Imperial College Healthcare NHS Trust,3/21/2023,Computer Software/License,Information & Comms Technology,Advanced Business Solutions,4750936,"35,274.00",Optional requirement only,0
Department of Health,Imperial College Healthcare NHS Trust,3/21/2023,Course Fees,Nursing Directorate,South London & Maudsley Nhs Ft,4763462,"34,200.00",Optional requirement only,0
Department of Health,Imperial College Healthcare NHS Trust,3/21/2023,Cy Auc -Addns-Bd Purchased,Capital Summary,Cbre Managed Services Ltd,4770604,"1,529,042.60",Optional requirement only,0
Department of Health,Imperial College Healthcare NHS Trust,3/21/2023,Cy Auc -Addns- It Eqpt-Addns,Capital Summary,Chelsea And  Westminster Hospital Nhs Ft,4767266,"31,250.00",Optional requirement only,0
Department of Health,Imperial College Healthcare NHS Trust,3/21/2023,Cy Auc -Addns- P & M-Purchased,Capital Summary,Athrodax Healthcare International Ltd,4769454,"84,610.80",Optional requirement only,0
Department of Health,Imperial College Healthcare NHS Trust,3/21/2023,Cy Auc -Addns- P & M-Purchased,Capital Summary,Novacor Uk Ltd,4768475,"67,189.76",Optional requirement only,0
Department of Health,Imperial College Healthcare NHS Trust,3/21/2023,Cy Auc -Addns- P & M-Purchased,Capital Summary,Philips Electronics Uk Ltd,4769958,"157,692.30",Optional requirement only,0
Department of Health,Imperial College Healthcare NHS Trust,3/21/2023,Cy Auc -Addns- P & M-Purchased,Capital Summary,Philips Electronics Uk Ltd,4770157,"179,196.62",Optional requirement only,0
Department of Health,Imperial College Healthcare NHS Trust,3/21/2023,Cy Auc -Addns- P & M-Purchased,Capital Summary,Philips Electronics Uk Ltd,4770169,"48,926.71",Optional requirement only,0
Department of Health,Imperial College Healthcare NHS Trust,3/21/2023,Cy Auc -Addns- P & M-Purchased,Capital Summary,Philips Electronics Uk Ltd,4770173,"91,221.37",Optional requirement only,0
Department of Health,Imperial College Healthcare NHS Trust,3/21/2023,Cy Auc -Addns- P & M-Purchased,Capital Summary,Philips Electronics Uk Ltd,4770533,"144,136.12",Optional requirement only,0
Department of Health,Imperial College Healthcare NHS Trust,3/21/2023,Cy Auc -Addns- P & M-Purchased,Capital Summary,Philips Electronics Uk Ltd,4770565,"196,956.94",Optional requirement only,0
Department of Health,Imperial College Healthcare NHS Trust,3/21/2023,Cy Auc -Addns- P & M-Purchased,Capital Summary,Philips Electronics Uk Ltd,4770607,"216,895.60",Optional requirement only,0
Department of Health,Imperial College Healthcare NHS Trust,3/21/2023,Cy Auc -Addns- P & M-Purchased,Capital Summary,Philips Electronics Uk Ltd,4770726,"233,593.86",Optional requirement only,0
Department of Health,Imperial College Healthcare NHS Trust,3/21/2023,Cy Auc -Addns- P & M-Purchased,Capital Summary,Supply Chain Coordination Ltd (Sccl) ( 905),4764420,"525,263.40",Optional requirement only,0
Department of Health,Imperial College Healthcare NHS Trust,3/21/2023,Cy Auc -Addns- P & M-Purchased,Capital Summary,Supply Chain Coordination Ltd (Sccl) ( 905),4769356,"89,319.60",Optional requirement only,0
Department of Health,Imperial College Healthcare NHS Trust,3/21/2023,Cy Auc -Addns- P & M-Purchased,Capital Summary,Supply Chain Coordination Ltd (Sccl) ( 905),4769359,"103,896.00",Optional requirement only,0
Department of Health,Imperial College Healthcare NHS Trust,3/21/2023,Decontamination Services,Estates Directorate,Ihss Limited,4770528,"400,304.21",Optional requirement only,0
Department of Health,Imperial College Healthcare NHS Trust,3/21/2023,Decontamination Services,Estates Directorate,Ihss Limited,4770529,"400,304.21",Optional requirement only,0
Department of Health,Imperial College Healthcare NHS Trust,3/21/2023,Equip Maint Contracts,Estates Directorate,Intercept Med Ltd,4723427,"54,480.00",Optional requirement only,0
Department of Health,Imperial College Healthcare NHS Trust,3/21/2023,Ext Contract - Patient Travel,Estates Directorate,Falck Uk Ambulance Service Limited,4760585,"1,829,237.12",Optional requirement only,0
Department of Health,Imperial College Healthcare NHS Trust,3/21/2023,Ext Contr Logistics,Div Of Women & Clin Support,Eleanor Hospital Logistics Ltd,4770608,"61,603.46",Optional requirement only,0
Department of Health,Imperial College Healthcare NHS Trust,3/21/2023,Gas,Estates Directorate,Total Gas & Power Ltd,4769467,"516,728.71",Optional requirement only,0
Department of Health,Imperial College Healthcare NHS Trust,3/21/2023,Gas,Estates Directorate,Total Gas & Power Ltd,4769469,"272,313.77",Optional requirement only,0
Department of Health,Imperial College Healthcare NHS Trust,3/21/2023,Gas,Estates Directorate,Total Gas & Power Ltd,4769474,"576,077.45",Optional requirement only,0
Department of Health,Imperial College Healthcare NHS Trust,3/21/2023,Jac - Stock,Balance Sheet St Marys,Polar Speed Distribution Ltd,4768392,"53,298.00",Optional requirement only,Stock
Department of Health,Imperial College Healthcare NHS Trust,3/21/2023,Lease Charges,Information & Comms Technology,Xerox (Uk) Ltd,4761084,"36,616.99",Optional requirement only,0
Department of Health,Imperial College Healthcare NHS Trust,3/21/2023,Lease Charges,Information & Comms Technology,Xerox (Uk) Ltd,4765894,"42,661.34",Optional requirement only,0
Department of Health,Imperial College Healthcare NHS Trust,3/21/2023,Med & Surg Equip General,"Div Of Surg, Cardiov & Cancer",Auditdata Ltd,4760674,"31,161.60",Optional requirement only,0
Department of Health,Imperial College Healthcare NHS Trust,3/21/2023,Med & Surg Equip General,"Div Of Surg, Cardiov & Cancer",Vanguard Healthcare Solutions Ltd,4760661,"79,362.00",Optional requirement only,0
Department of Health,Imperial College Healthcare NHS Trust,3/21/2023,Med & Surg Equip Hire,Div Of Women & Clin Support,Medneo Diagnostics Uk Ltd,4721722,"32,400.00",Optional requirement only,0
Department of Health,Imperial College Healthcare NHS Trust,3/21/2023,Med & Surg Equip Leases,Estates Directorate,Arjo Uk Ltd,4767612,"115,657.70",Optional requirement only,0
Department of Health,Imperial College Healthcare NHS Trust,3/21/2023,Nhs Pay Recharge In: Clerical,Finance Directorate,Camden & Islington Nhs Foundation Trust,4744040,"31,640.94",Optional requirement only,0
Department of Health,Imperial College Healthcare NHS Trust,3/21/2023,Other Gen Supplies & Srv,"Div Of Surg, Cardiov & Cancer",Acumentice Limited,4754720,"171,123.36",Optional requirement only,0
Department of Health,Imperial College Healthcare NHS Trust,3/21/2023,Other Research Exp - Pay,Rd Medical Directorate,London North West Univ Healthcare Nhs Trust,4767803,"37,125.00",Optional requirement only,0
Department of Health,Imperial College Healthcare NHS Trust,3/21/2023,Other Transport Costs,Pathology,Dhl Supply Chain  (Former Excel),53299,"40,845.94",Optional requirement only,0
Department of Health,Imperial College Healthcare NHS Trust,3/21/2023,Rates,Estates Directorate,London Borough Hammersmith & Fulham,4771190,"146,743.00",Optional requirement only,0
Department of Health,Imperial College Healthcare NHS Trust,3/21/2023,Rates,Estates Directorate,London Borough Hammersmith & Fulham,4771191,"129,010.00",Optional requirement only,0
Department of Health,Imperial College Healthcare NHS Trust,3/21/2023,Services Received - Pcts,Div Of Women & Clin Support,Chelsea And  Westminster Hospital Nhs Ft,4744082,"40,000.00",Optional requirement only,0
Department of Health,Imperial College Healthcare NHS Trust,3/23/2023,Agency Nursing: Qualified,Div Of Med & Integrated Care,Reed Specialist Recruitment Ltd,4773091,"110,668.08",Optional requirement only,0
Department of Health,Imperial College Healthcare NHS Trust,3/23/2023,Agency Nursing: Qualified,"Div Of Surg, Cardiov & Cancer",Reed Specialist Recruitment Ltd,4773091,"132,569.76",Optional requirement only,0
Department of Health,Imperial College Healthcare NHS Trust,3/23/2023,Blood Products,Pathology,Nhs Blood And Transplant,4767604,"29,891.28",Optional requirement only,0
Department of Health,Imperial College Healthcare NHS Trust,3/23/2023,Blood Products,Pathology,Nhs Blood And Transplant,4767623,"45,967.22",Optional requirement only,0
Department of Health,Imperial College Healthcare NHS Trust,3/23/2023,Clinical Managed Service Contr,Div Of Women & Clin Support,Medtronic Ltd,4750168,"1,804,551.89",Optional requirement only,0
Department of Health,Imperial College Healthcare NHS Trust,3/23/2023,Clinical Managed Service Contr,Div Of Women & Clin Support,Medtronic Ltd,4767918,"1,602,432.39",Optional requirement only,0
Department of Health,Imperial College Healthcare NHS Trust,3/23/2023,Computer Maintenance,Information & Comms Technology,Xerox (Uk) Ltd,4716378,"31,968.00",Optional requirement only,0
Department of Health,Imperial College Healthcare NHS Trust,3/23/2023,Cy Auc -Addns-Bd Purchased,Capital Summary,M&J Group (Construction & Roofin) Ltd [Cs],4770174,"49,960.76",Optional requirement only,0
Department of Health,Imperial College Healthcare NHS Trust,3/23/2023,Cy Auc -Addns- P & M-Purchased,Capital Summary,Nj Devices Ltd T/A Ocean Med,4772286,"67,776.00",Optional requirement only,0
Department of Health,Imperial College Healthcare NHS Trust,3/23/2023,Cy Auc -Addns- P & M-Purchased,Capital Summary,Philips Electronics Uk Ltd,4771224,"115,886.48",Optional requirement only,0
Department of Health,Imperial College Healthcare NHS Trust,3/23/2023,Ext Contr Logistics,Div Of Women & Clin Support,Eleanor Hospital Logistics Ltd,4771261,"56,678.89",Optional requirement only,0
Department of Health,Imperial College Healthcare NHS Trust,3/23/2023,Jac - Stock,Balance Sheet St Marys,Aah Pharmaceuticals Limited,4769734,"32,706.30",Optional requirement only,Stock
Department of Health,Imperial College Healthcare NHS Trust,3/23/2023,Jac - Stock,Balance Sheet St Marys,Bayer Plc,4771704,"49,272.62",Optional requirement only,Stock
Department of Health,Imperial College Healthcare NHS Trust,3/23/2023,Jac - Stock,Balance Sheet St Marys,Polar Speed Distribution Ltd,4762378,"26,649.00",Optional requirement only,Stock
Department of Health,Imperial College Healthcare NHS Trust,3/23/2023,Jac - Stock,Balance Sheet St Marys,Qualasept Ltd,4769038,"55,331.94",Optional requirement only,Stock
Department of Health,Imperial College Healthcare NHS Trust,3/23/2023,Jac - Stock,Balance Sheet St Marys,Qualasept Ltd,4769042,"138,183.90",Optional requirement only,Stock
Department of Health,Imperial College Healthcare NHS Trust,3/23/2023,Jac - Stock,Balance Sheet St Marys,Qualasept Ltd,4769043,"43,374.00",Optional requirement only,Stock
Department of Health,Imperial College Healthcare NHS Trust,3/23/2023,Jac - Stock,Balance Sheet St Marys,Qualasept Ltd,4769044,"54,896.04",Optional requirement only,Stock
Department of Health,Imperial College Healthcare NHS Trust,3/23/2023,Jac - Stock,Balance Sheet St Marys,Qualasept Ltd,4769045,"55,803.84",Optional requirement only,Stock
Department of Health,Imperial College Healthcare NHS Trust,3/23/2023,Jac - Stock,Balance Sheet St Marys,Qualasept Ltd,4769674,"54,932.04",Optional requirement only,Stock
Department of Health,Imperial College Healthcare NHS Trust,3/23/2023,Jac - Stock,Balance Sheet St Marys,Roche Products Ltd,4769847,"45,318.00",Optional requirement only,Stock
Department of Health,Imperial College Healthcare NHS Trust,3/23/2023,Losses & Comps,Estates Directorate,Castle Water Ltd,4772461,"55,767.23",Optional requirement only,0
Department of Health,Imperial College Healthcare NHS Trust,3/23/2023,Losses & Comps,Estates Directorate,Castle Water Ltd,4772465,"62,977.17",Optional requirement only,0
Department of Health,Imperial College Healthcare NHS Trust,3/23/2023,Losses & Comps,Estates Directorate,Castle Water Ltd,4772466,"31,227.12",Optional requirement only,0
Department of Health,Imperial College Healthcare NHS Trust,3/23/2023,Non-Nhs Pay Rechge In Clerical,"Div Of Surg, Cardiov & Cancer",Defence Medical Welfare Service,4771183,"31,500.00",Optional requirement only,0
Department of Health,Imperial College Healthcare NHS Trust,3/23/2023,Patients Appl: Purchase,Div Of Med & Integrated Care,London Borough Of Hammersmith & Fulham,4765833,"39,816.46",Optional requirement only,0
Department of Health,Imperial College Healthcare NHS Trust,3/23/2023,Purch Hcare Independent Sector,Div Of Med & Integrated Care,Homelink Healthcare Ltd,4772221,"45,986.20",Optional requirement only,0
Department of Health,Imperial College Healthcare NHS Trust,3/23/2023,Purch Hcare Independent Sector,"Div Of Surg, Cardiov & Cancer",Genesiscare,4764882,"26,262.00",Optional requirement only,0
Department of Health,Imperial College Healthcare NHS Trust,3/23/2023,Rent,Div Of Med & Integrated Care,Nhs Property Services Ltd,4358344,"33,612.43",Optional requirement only,0
Department of Health,Imperial College Healthcare NHS Trust,3/23/2023,Rent,Div Of Med & Integrated Care,Nhs Property Services Ltd,4435002,"34,655.86",Optional requirement only,0
Department of Health,Imperial College Healthcare NHS Trust,3/23/2023,Rent,Estates Directorate,Nhs Property Services Ltd,4590365,"32,321.21",Optional requirement only,0
Department of Health,Imperial College Healthcare NHS Trust,3/23/2023,Rent,Estates Directorate,Nhs Property Services Ltd,4614988,"32,321.21",Optional requirement only,0
Department of Health,Imperial College Healthcare NHS Trust,3/23/2023,Rent,Estates Directorate,Nhs Property Services Ltd,4667858,"32,378.72",Optional requirement only,0
Department of Health,Imperial College Healthcare NHS Trust,3/23/2023,Rent,Estates Directorate,Nhs Property Services Ltd,4727137,"25,171.58",Optional requirement only,0
Department of Health,Imperial College Healthcare NHS Trust,3/23/2023,Water,Estates Directorate,Castle Water Ltd,4723806,"27,118.57",Optional requirement only,0
Department of Health,Imperial College Healthcare NHS Trust,3/24/2023,Rent,Div Of Med & Integrated Care,Nhs Property Services Ltd,4324608,"30,563.11",Optional requirement only,0
Department of Health,Imperial College Healthcare NHS Trust,3/24/2023,Rent,Div Of Med & Integrated Care,Nhs Property Services Ltd,4463791,"86,719.74",Optional requirement only,0
Department of Health,Imperial College Healthcare NHS Trust,3/24/2023,Rent,Div Of Med & Integrated Care,Nhs Property Services Ltd,4515849,"86,719.74",Optional requirement only,0
Department of Health,Imperial College Healthcare NHS Trust,3/24/2023,Rent,Div Of Med & Integrated Care,Nhs Property Services Ltd,4590363,"86,872.96",Optional requirement only,0
Department of Health,Imperial College Healthcare NHS Trust,3/24/2023,Rent,Div Of Med & Integrated Care,Nhs Property Services Ltd,4614983,"86,872.96",Optional requirement only,0
Department of Health,Imperial College Healthcare NHS Trust,3/24/2023,Rent,Div Of Med & Integrated Care,Nhs Property Services Ltd,4667857,"86,872.96",Optional requirement only,0
Department of Health,Imperial College Healthcare NHS Trust,3/24/2023,Rent,Div Of Med & Integrated Care,Nhs Property Services Ltd,4727141,"86,872.96",Optional requirement only,0
Department of Health,Imperial College Healthcare NHS Trust,3/28/2023,Agency Nursing: Qualified,Div Of Med & Integrated Care,Reed Specialist Recruitment Ltd,4775520,"139,693.58",Optional requirement only,0
Department of Health,Imperial College Healthcare NHS Trust,3/28/2023,Agency Nursing: Qualified,"Div Of Surg, Cardiov & Cancer",Reed Specialist Recruitment Ltd,4775520,"118,630.55",Optional requirement only,0
Department of Health,Imperial College Healthcare NHS Trust,3/28/2023,Books  Journals & Subscr,Div Of Med & Integrated Care,The Renal Association (Legal Entity) T/A,4565306,"116,919.12",Optional requirement only,0
Department of Health,Imperial College Healthcare NHS Trust,3/28/2023,Computer Maintenance,Information & Comms Technology,Xpertex Ltd,4756252,"163,028.19",Optional requirement only,0
Department of Health,Imperial College Healthcare NHS Trust,3/28/2023,Consultancy Fees,Information & Comms Technology,Information Governance Services Limited,4768446,"62,376.00",Optional requirement only,0
Department of Health,Imperial College Healthcare NHS Trust,3/28/2023,Consultancy Fees,Information & Comms Technology,Optimus It Infra Ltd,4774417,"37,800.00",Optional requirement only,0
Department of Health,Imperial College Healthcare NHS Trust,3/28/2023,Consultancy Fees,Information & Comms Technology,Optimus It Infra Ltd,4774420,"61,920.00",Optional requirement only,0
Department of Health,Imperial College Healthcare NHS Trust,3/28/2023,Cy Auc -Addns-Bd Purchased,Capital Summary,Vista Maintenance Services Limited,4773758,"43,449.60",Optional requirement only,0
Department of Health,Imperial College Healthcare NHS Trust,3/28/2023,Cy Auc -Addns- F&F Purchased,Capital Summary,East Thames Signs Limited,4774297,"75,000.00",Optional requirement only,0
Department of Health,Imperial College Healthcare NHS Trust,3/28/2023,Cy Auc -Addns- It Eqpt-Addns,Capital Summary,Cdw Ltd,4775649,"124,940.00",Optional requirement only,0
Department of Health,Imperial College Healthcare NHS Trust,3/28/2023,Cy Auc -Addns- It Eqpt-Addns,Capital Summary,Cdw Ltd,4775650,"75,000.00",Optional requirement only,0
Department of Health,Imperial College Healthcare NHS Trust,3/28/2023,Cy Auc -Addns- It Eqpt-Addns,Capital Summary,Cdw Ltd,4775653,"139,998.74",Optional requirement only,0
Department of Health,Imperial College Healthcare NHS Trust,3/28/2023,Cy Auc -Addns- It Eqpt-Addns,Capital Summary,Cdw Ltd,4775656,"735,000.00",Optional requirement only,0
Department of Health,Imperial College Healthcare NHS Trust,3/28/2023,Cy Auc -Addns- It Eqpt-Addns,Capital Summary,Cdw Ltd,4775658,"500,000.00",Optional requirement only,0
Department of Health,Imperial College Healthcare NHS Trust,3/28/2023,Cy Auc -Addns- It Eqpt-Addns,Capital Summary,Cdw Ltd,4775660,"385,896.58",Optional requirement only,0
Department of Health,Imperial College Healthcare NHS Trust,3/28/2023,Cy Auc -Addns- It Eqpt-Addns,Capital Summary,Cdw Ltd,4775661,"291,644.28",Optional requirement only,0
Department of Health,Imperial College Healthcare NHS Trust,3/28/2023,Cy Auc -Addns- It Eqpt-Addns,Capital Summary,Infratech Hardware Limited,4770286,"49,289.36",Optional requirement only,0
Department of Health,Imperial College Healthcare NHS Trust,3/28/2023,Cy Auc -Addns- It Eqpt-Addns,Capital Summary,Optimus It Infra Ltd,4774413,"84,000.00",Optional requirement only,0
Department of Health,Imperial College Healthcare NHS Trust,3/28/2023,Cy Auc -Addns- It Eqpt-Addns,Capital Summary,Optimus It Infra Ltd,4774415,"101,400.00",Optional requirement only,0
Department of Health,Imperial College Healthcare NHS Trust,3/28/2023,Cy Auc -Addns- It Eqpt-Addns,Capital Summary,Optimus It Infra Ltd,4774418,"36,000.00",Optional requirement only,0
Department of Health,Imperial College Healthcare NHS Trust,3/28/2023,Cy Auc -Addns- It Eqpt-Addns,Capital Summary,Optimus It Infra Ltd,4774421,"117,000.00",Optional requirement only,0
Department of Health,Imperial College Healthcare NHS Trust,3/28/2023,Cy Auc -Addns- It Eqpt-Addns,Capital Summary,Optimus It Infra Ltd,4774422,"66,800.00",Optional requirement only,0
Department of Health,Imperial College Healthcare NHS Trust,3/28/2023,Cy Auc -Addns- It Eqpt-Addns,Capital Summary,Optimus It Infra Ltd,4774425,"285,000.00",Optional requirement only,0
Department of Health,Imperial College Healthcare NHS Trust,3/28/2023,Cy Auc -Addns- It Eqpt-Addns,Capital Summary,Optimus It Infra Ltd,4774426,"57,600.00",Optional requirement only,0
Department of Health,Imperial College Healthcare NHS Trust,3/28/2023,Cy Auc -Addns- P & M-Purchased,Capital Summary,Daybreak Medical Ltd,4773408,"59,994.00",Optional requirement only,0
Department of Health,Imperial College Healthcare NHS Trust,3/28/2023,Cy Auc -Addns- P & M-Purchased,Capital Summary,Medtronic Ltd,4774489,"49,392.00",Optional requirement only,0
Department of Health,Imperial College Healthcare NHS Trust,3/28/2023,Cy Auc -Addns- P & M-Purchased,Capital Summary,Supply Chain Coordination Ltd (Sccl) ( 905),4767515,"658,617.67",Optional requirement only,0
Department of Health,Imperial College Healthcare NHS Trust,3/28/2023,Cy Auc -Addns- P & M-Purchased,Capital Summary,Supply Chain Coordination Ltd (Sccl) ( 905),4767972,"327,952.28",Optional requirement only,0
Department of Health,Imperial College Healthcare NHS Trust,3/28/2023,Cy Auc -Addns- Prof Fee)-Purch,Capital Summary,Reed Specialist Recruitment Ltd,4775520,"71,636.76",Optional requirement only,0
Department of Health,Imperial College Healthcare NHS Trust,3/28/2023,Dist Award - Nat Cea,Div Of Med & Integrated Care,Imperial College London,4774046,"77,074.70",Optional requirement only,0
Department of Health,Imperial College Healthcare NHS Trust,3/28/2023,Dist Award - Nat Cea,"Div Of Surg, Cardiov & Cancer",Imperial College London,4774046,"56,092.17",Optional requirement only,0
Department of Health,Imperial College Healthcare NHS Trust,3/28/2023,Dist Award - Nat Cea,Div Of Women & Clin Support,Imperial College London,4774046,"38,904.06",Optional requirement only,0
Department of Health,Imperial College Healthcare NHS Trust,3/28/2023,Ic Pay Recharge In: Med,Div Of Med & Integrated Care,Imperial College London,4774046,"196,258.48",Optional requirement only,0
Department of Health,Imperial College Healthcare NHS Trust,3/28/2023,Ic Pay Recharge In: Med,Div Of Med & Integrated Care,Imperial College London,4774047,"30,964.11",Optional requirement only,0
Department of Health,Imperial College Healthcare NHS Trust,3/28/2023,Ic Pay Recharge In: Med,"Div Of Surg, Cardiov & Cancer",Imperial College London,4774046,"402,313.10",Optional requirement only,0
Department of Health,Imperial College Healthcare NHS Trust,3/28/2023,Ic Pay Recharge In: Med,"Div Of Surg, Cardiov & Cancer",Imperial College London,4774047,"52,664.23",Optional requirement only,0
Department of Health,Imperial College Healthcare NHS Trust,3/28/2023,Ic Pay Recharge In: Med,Div Of Women & Clin Support,Imperial College London,4774046,"136,219.89",Optional requirement only,0
Department of Health,Imperial College Healthcare NHS Trust,3/28/2023,Ic Pay Recharge In: Med,Div Of Women & Clin Support,Imperial College London,4774048,"28,162.35",Optional requirement only,0
Department of Health,Imperial College Healthcare NHS Trust,3/28/2023,Ic Pay Recharge In: Med,Pathology,Imperial College London,4774049,"34,542.85",Optional requirement only,0
Department of Health,Imperial College Healthcare NHS Trust,3/28/2023,Jac - Stock,Balance Sheet St Marys,Alloga Uk Ltd,4769998,"97,632.00",Optional requirement only,Stock
Department of Health,Imperial College Healthcare NHS Trust,3/28/2023,Jac - Stock,Balance Sheet St Marys,Alloga Uk Ltd,4774306,"43,200.00",Optional requirement only,Stock
Department of Health,Imperial College Healthcare NHS Trust,3/28/2023,Jac - Stock,Balance Sheet St Marys,Alloga Uk Ltd,4775260,"146,448.00",Optional requirement only,Stock
Department of Health,Imperial College Healthcare NHS Trust,3/28/2023,Jac - Stock,Balance Sheet St Marys,Alloga Uk Ltd,4775264,"146,448.00",Optional requirement only,Stock
Department of Health,Imperial College Healthcare NHS Trust,3/28/2023,Jac - Stock,Balance Sheet St Marys,Bayer Plc,4771519,"31,935.96",Optional requirement only,Stock
Department of Health,Imperial College Healthcare NHS Trust,3/28/2023,Jac - Stock,Balance Sheet St Marys,Biotest (Uk) Ltd,4774873,"63,480.00",Optional requirement only,Stock
Department of Health,Imperial College Healthcare NHS Trust,3/28/2023,Jac - Stock,Balance Sheet St Marys,Janssen-Cilag Ltd,4773175,"50,077.44",Optional requirement only,Stock
Department of Health,Imperial College Healthcare NHS Trust,3/28/2023,Jac - Stock,Balance Sheet St Marys,Qualasept Ltd,4775287,"55,767.84",Optional requirement only,Stock
Department of Health,Imperial College Healthcare NHS Trust,3/28/2023,Jac - Stock,Balance Sheet St Marys,Roche Products Ltd,4770120,"268,500.00",Optional requirement only,Stock
Department of Health,Imperial College Healthcare NHS Trust,3/28/2023,Jac - Stock,Balance Sheet St Marys,Roche Products Ltd,4773361,"42,042.00",Optional requirement only,Stock
Department of Health,Imperial College Healthcare NHS Trust,3/28/2023,Jac - Stock,Balance Sheet St Marys,Roche Products Ltd,4774324,"231,479.88",Optional requirement only,Stock
Department of Health,Imperial College Healthcare NHS Trust,3/28/2023,Med & Surg Equip General,Div Of Women & Clin Support,Alliance Medical Ltd,4756139,"85,003.20",Optional requirement only,0
Department of Health,Imperial College Healthcare NHS Trust,3/28/2023,Med & Surg Equip Repair,"Div Of Surg, Cardiov & Cancer",Karl Storz Endoscopy (Uk) Ltd,4749912,"122,841.60",Optional requirement only,0
Department of Health,Imperial College Healthcare NHS Trust,3/28/2023,Organ Donor Expenses,"Div Of Surg, Cardiov & Cancer",The Anthony Nolan Trust,4608528,"36,130.00",Optional requirement only,0
Department of Health,Imperial College Healthcare NHS Trust,3/28/2023,Other Research Exp - Non-Pay,Rd Medical Directorate,Imperial College Health Partners,4774430,"30,000.00",Optional requirement only,0
Department of Health,Imperial College Healthcare NHS Trust,3/28/2023,Other Research Exp - Pay,Rd Medical Directorate,Imperial College London,4774722,"59,768.00",Optional requirement only,0
Department of Health,Imperial College Healthcare NHS Trust,3/28/2023,Other Research Exp - Pay,Rdwomen And Children Division,Imperial College London,4767141,"85,589.22",Optional requirement only,0
Department of Health,Imperial College Healthcare NHS Trust,3/29/2023,Computer Maintenance,Information & Comms Technology,Optimus It Infra Ltd,4776611,"158,146.56",Optional requirement only,0
Department of Health,Imperial College Healthcare NHS Trust,3/29/2023,Computer Maintenance,Information & Comms Technology,Optimus It Infra Ltd,4776612,"173,640.00",Optional requirement only,0
Department of Health,Imperial College Healthcare NHS Trust,3/29/2023,Cy Auc -Addns- It Eqpt-Addns,Capital Summary,Optimus It Infra Ltd,4776613,"120,000.00",Optional requirement only,0
Department of Health,Imperial College Healthcare NHS Trust,3/29/2023,Cy Auc -Addns- It Eqpt-Addns,Capital Summary,Optimus It Infra Ltd,4776616,"30,000.00",Optional requirement only,0
Department of Health,Imperial College Healthcare NHS Trust,3/29/2023,Cy Auc -Addns- P & M-Purchased,Capital Summary,Alterior Ltd T/A Hulbert Imaging,4775116,"96,660.00",Optional requirement only,0
Department of Health,Imperial College Healthcare NHS Trust,3/29/2023,Cy Auc -Addns- P & M-Purchased,Capital Summary,Erbe Medical Uk Ltd,4775809,"56,041.63",Optional requirement only,0
Department of Health,Imperial College Healthcare NHS Trust,3/29/2023,Cy Auc -Addns- P & M-Purchased,Capital Summary,Philips Electronics Uk Ltd,4772288,"57,034.32",Optional requirement only,0
Department of Health,Imperial College Healthcare NHS Trust,3/29/2023,Cy Auc -Addns- P & M-Purchased,Capital Summary,Philips Electronics Uk Ltd,4774790,"130,718.94",Optional requirement only,0
Department of Health,Imperial College Healthcare NHS Trust,3/29/2023,Cy Auc -Addns- P & M-Purchased,Capital Summary,Probo Medical Ltd,4757789,"32,634.00",Optional requirement only,0
Department of Health,Imperial College Healthcare NHS Trust,3/29/2023,Cy Auc -Addns- Prof Fee)-Purch,Capital Summary,Aecom,4776482,"33,267.60",Optional requirement only,0
Department of Health,Imperial College Healthcare NHS Trust,3/29/2023,Cy Auc -Addns- Prof Fee)-Purch,Capital Summary,Freeman Ankerman Partnership,4763612,"34,794.00",Optional requirement only,0
Department of Health,Imperial College Healthcare NHS Trust,3/29/2023,Engineering Contracts,Rd Surgery & Cancer Division,Accenture (Uk) Ltd,4761064,"61,594.20",Optional requirement only,0
Department of Health,Imperial College Healthcare NHS Trust,3/29/2023,Jac - Stock,Balance Sheet St Marys,Bms Pharmaceuticals Ltd (0034),4775925,"60,568.20",Optional requirement only,Stock
Department of Health,Imperial College Healthcare NHS Trust,3/29/2023,Legal Fees,Other,Allen & Overy Llp,4733082,"70,744.64",Optional requirement only,0
Department of Health,Imperial College Healthcare NHS Trust,3/29/2023,Other Miscellaneous,Rd Medical Directorate,Imperial College Health Partners,4776473,"60,000.00",Optional requirement only,0
Department of Health,Imperial College Healthcare NHS Trust,3/29/2023,Other Research Exp - Pay,Rdwomen And Children Division,Imperial College London,4775000,"50,000.00",Optional requirement only,0
Department of Health,Imperial College Healthcare NHS Trust,3/29/2023,Stents,"Div Of Surg, Cardiov & Cancer",Cryolife Europa Ltd,4775601,"35,400.00",Optional requirement only,0
Department of Health,Imperial College Healthcare NHS Trust,3/29/2023,Supplies Issues Recharges,Ichnt Balance Sheet,Supply Chain Coordination Ltd (Sccl) ( 101),4765748,"113,879.41",Optional requirement only,Stock
Department of Health,Imperial College Healthcare NHS Trust,3/29/2023,Supplies Issues Recharges,Ichnt Balance Sheet,Supply Chain Coordination Ltd (Sccl) ( 101),4765750,"108,611.51",Optional requirement only,Stock
Department of Health,Imperial College Healthcare NHS Trust,3/29/2023,Supplies Issues Recharges,Ichnt Balance Sheet,Supply Chain Coordination Ltd (Sccl) ( 101),4765751,"59,589.54",Optional requirement only,Stock
Department of Health,Imperial College Healthcare NHS Trust,3/29/2023,Supplies Issues Recharges,Ichnt Balance Sheet,Supply Chain Coordination Ltd (Sccl) ( 101),4765752,"103,558.80",Optional requirement only,Stock
Department of Health,Imperial College Healthcare NHS Trust,3/29/2023,Supplies Issues Recharges,Ichnt Balance Sheet,Supply Chain Coordination Ltd (Sccl) ( 101),4765753,"122,000.37",Optional requirement only,Stock
Department of Health,Imperial College Healthcare NHS Trust,3/29/2023,Supplies Issues Recharges,Ichnt Balance Sheet,Supply Chain Coordination Ltd (Sccl) ( 101),4765754,"113,357.46",Optional requirement only,Stock
Department of Health,Imperial College Healthcare NHS Trust,3/29/2023,Supplies Issues Recharges,Ichnt Balance Sheet,Supply Chain Coordination Ltd (Sccl) ( 101),4770294,"105,352.05",Optional requirement only,Stock
Department of Health,Imperial College Healthcare NHS Trust,3/29/2023,Supplies Issues Recharges,Ichnt Balance Sheet,Supply Chain Coordination Ltd (Sccl) ( 101),4770295,"121,815.79",Optional requirement only,Stock
Department of Health,Imperial College Healthcare NHS Trust,3/29/2023,Supplies Issues Recharges,Ichnt Balance Sheet,Supply Chain Coordination Ltd (Sccl) ( 101),4770296,"98,869.41",Optional requirement only,Stock
Department of Health,Imperial College Healthcare NHS Trust,3/29/2023,Supplies Issues Recharges,Ichnt Balance Sheet,Supply Chain Coordination Ltd (Sccl) ( 101),4770297,"111,158.84",Optional requirement only,Stock
Department of Health,Imperial College Healthcare NHS Trust,3/29/2023,Supplies Issues Recharges,Ichnt Balance Sheet,Supply Chain Coordination Ltd (Sccl) ( 101),4770298,"64,724.26",Optional requirement only,Stock
Department of Health,Imperial College Healthcare NHS Trust,3/29/2023,Supplies Issues Recharges,Ichnt Balance Sheet,Supply Chain Coordination Ltd (Sccl) ( 101),4770299,"81,985.14",Optional requirement only,Stock
Department of Health,Imperial College Healthcare NHS Trust,3/29/2023,Supplies Issues Recharges,Ichnt Balance Sheet,Supply Chain Coordination Ltd (Sccl) ( 101),4775052,"102,540.45",Optional requirement only,Stock
Department of Health,Imperial College Healthcare NHS Trust,3/29/2023,Supplies Issues Recharges,Ichnt Balance Sheet,Supply Chain Coordination Ltd (Sccl) ( 101),4775053,"116,433.45",Optional requirement only,Stock
Department of Health,Imperial College Healthcare NHS Trust,3/29/2023,Supplies Issues Recharges,Ichnt Balance Sheet,Supply Chain Coordination Ltd (Sccl) ( 101),4775054,"68,487.38",Optional requirement only,Stock
Department of Health,Imperial College Healthcare NHS Trust,3/29/2023,Taxi & Other Vehicle Hire,Estates Directorate,Dhl Supply Chain  (Former Excel),4738836,"292,190.45",Optional requirement only,0
,,,,,,Sum:,"100,615,579.42",,
,,,,,Count:,451,,,
